Workbook

Sheet Model
B1: Sheets | C1: Sheet Type | D1: Description | E1: Links
B2: Model | C2: Assumptions | D2: Description of Sheets | E2: =HYPERLINK("#"&B2&"!A2",B2) -> Model
B3: List | C3: Assumptions | D3: Lists and model assumptions | E3: =HYPERLINK("#"&B3&"!A2",B3) -> List
B4: Data | C4: Input Sheet | D4: Actual lead metrics by region | E4: Data
B5: Plan | C5: Input Sheet | D5: Plan lead metrics by region | E5: Plan
B6: Cust | C6: Input Sheet | D6: Customer data (small data set) | E6: Cust
B7: Hires | C7: Input Sheet | D7: Hires and terminations | E7: Hires
B8: Sick | C8: Input Sheet | D8: Average sick days per employee | E8: Sick
B9: FTE | C9: Input Sheet | D9: Full time equivalent workers | E9: FTE
B10: General | C10: Input Sheet | D10: General financial metrics | E10: General
B11: Other | C11: Input Sheet | D11: Other financial and ops metrics | E11: Other
B12: Calcs | C12: Calculations sheet | D12: Primary calculations page | E12: Calcs
B13: Check | C13: Error trapping | D13: Checks and balances for the model | E13: Check
B14: Summary | C14: Output Sheet | D14: Primary output page | E14: Summary

Sheet Lists
A1: Metric | B1: Measures | D1: Hires | E1: Years | F1: Regions | H1: Checks
A2: Linked Cell Spinner | B2: =Summary!B5 -> 1 | D2: FY 10 | E2: FY 12 | F2: England | H2: Model OK
A3: Linked Cell Listbox | B3: Net Interest Margin | D3: FY 11 | E3: FY 13 | F3: Scotland | H3: Check Model
A4: Region Cell Link | B4: 1 | D4: FY 12 | E4: FY 14 | F4: Wales
A5: Region | B5: =OFFSET(F1,B4,0,1,1) -> England | D5: FY 13 | E5: FY 15 | F5: Northern Ireland
D6: FY 14 | E6: FY 16
D7: FY 15 | E7: FY 17
D8: FY 16 | E8: FY 18
D9: FY 17 | E9: FY 19
D10: FY 18 | E10: FY 20
D11: FY 19
D12: FY 20

Sheet Data
A1: Region | B1: Activity | C1: =OFFSET(Lists!$E$1,COLUMN()-2,0,1,1) -> FY 12 | D1: =OFFSET(Lists!$E$1,COLUMN()-2,0,1,1) -> FY 13 | E1: =OFFSET(Lists!$E$1,COLUMN()-2,0,1,1) -> FY 14 | F1: =OFFSET(Lists!$E$1,COLUMN()-2,0,1,1) -> FY 15 | G1: =OFFSET(Lists!$E$1,COLUMN()-2,0,1,1) -> FY 16 | H1: =OFFSET(Lists!$E$1,COLUMN()-2,0,1,1) -> FY 17 | I1: =OFFSET(Lists!$E$1,COLUMN()-2,0,1,1) -> FY 18 | J1: =OFFSET(Lists!$E$1,COLUMN()-2,0,1,1) -> FY 19 | K1: =OFFSET(Lists!$E$1,COLUMN()-2,0,1,1) -> FY 20
A2: England | B2: Net Income | C2: 7400 | D2: 8100 | E2: 8300 | F2: 9600 | G2: 10200 | H2: 10000 | I2: 10200 | J2: 10600 | K2: 10300
A3: England | B3: Revenue | C3: 28900 | D3: 33569 | E3: 34511 | F3: 35678 | G3: 38976 | H3: 40014 | I3: 41017.5 | J3: 42521.875 | K3: 48152.34375
A4: England | B4: Diluted Earnings Per Share | C4: 3.1 | D4: 3.2 | E4: 3.35 | F4: 3.4 | G4: 3.45 | H4: 3.6 | I4: 4.5 | J4: 5.625 | K4: 7.03125
A5: England | B5: Dividends Per Share | C5: 0.97 | D5: 1.05 | E5: 1.11 | F5: 1.2 | G5: 1.23 | H5: 1.28 | I5: 1.6 | J5: 2 | K5: 2.5
A6: England | B6: Return on Assets | C6: 2.6 | D6: 2.4 | E6: 2.6 | F6: 2.5 | G6: 2.5 | H6: 2.6 | I6: 3.25 | J6: 4.0625 | K6: 5.078125
A7: England | B7: Return on Equity | C7: 23.4 | D7: 22.7 | E7: 26.8 | F7: 25.7 | G7: 27.6 | H7: 28.6 | I7: 30.75 | J7: 25.6875 | K7: 22.859375
A8: England | B8: Net Interest Margin | C8: 7.5 | D8: 7.8 | E8: 8.3 | F8: 8.3 | G8: 8.4 | H8: 8.7 | I8: 8.875 | J8: 9 | K8: 8.7
A9: England | B9: Efficiency Ratio | C9: 0.84 | D9: 0.9 | E9: 0.85 | F9: 0.87 | G9: 0.84 | H9: 0.88 | I9: 1.1 | J9: 1.375 | K9: 1.71875
A10: England | B10: Assets | C10: 440000 | D10: 465000 | E10: 480000 | F10: 520000 | G10: 550000 | H10: 620000 | I10: 675000 | J10: 698750 | K10: 668750
A11: England | B11: Loans | C11: 255923 | D11: 267900 | E11: 278900 | F11: 298765 | G11: 312900 | H11: 320984 | I11: 301230 | J11: 298765 | K11: 326921.875
A12: England | B12: Core Deposits | C12: 253651 | D12: 262890 | E12: 268931 | F12: 274900 | G12: 289150 | H12: 305918 | I12: 315918 | J12: 307123 | K12: 335918
A13: England | B13: Stockholder's Equity | C13: 28750 | D13: 30800 | E13: 31540 | F13: 32700 | G13: 33870 | H13: 34900 | I13: 35900 | J13: 36900 | K13: 37900
A14: England | B14: Non-Performing Loans / Total Loans | C14: 1.7 | D14: 1.5 | E14: 1.5 | F14: 1.4 | G14: 1.2 | H14: 1.3 | I14: 1.7 | J14: 1.5 | K14: 1.3
A15: England | B15: Allowance / Total Loans | C15: 2.9 | D15: 2.9 | E15: 3 | F15: 3 | G15: 3.1 | H15: 3.2 | I15: 2.9 | J15: 2.9 | K15: 3
A16: England | B16: Allowance / Non-Performing Loans | C16: 3.45 | D16: 3.6 | E16: 3.55 | F16: 3.65 | G16: 3.7 | H16: 3.9 | I16: 3.9 | J16: 3.6 | K16: 3.9
A17: England | B17: Net Charge Offs / Average Total Loans | C17: 1.7 | D17: 1.4 | E17: 1.6 | F17: 1.6 | G17: 1.5 | H17: 1.4 | I17: 1.3 | J17: 1.6 | K17: 1.5
A19: Scotland | B19: Net Income | C19: 3330 | D19: 3685.5 | E19: 3818 | F19: 4464 | G19: 4794 | H19: 5225 | I19: 5376 | J19: 4794 | K19: 5225
A20: Scotland | B20: Revenue | C20: 13005 | D20: 15273.895 | E20: 15875.06 | F20: 16590.27 | G20: 18318.72 | H20: 19006.65 | I20: 24008.4 | J20: 18318.72 | K20: 19006.65
A21: Scotland | B21: Diluted Earnings Per Share | C21: 2.1 | D21: 2.2 | E21: 2.35 | F21: 2.4 | G21: 2.45 | H21: 3.2 | I21: 4.5 | J21: 5.625 | K21: 3.6
A22: Scotland | B22: Dividends Per Share | C22: 0.67 | D22: =C22+0.1 -> 0.77 | E22: =D22+0.1 -> 0.87 | F22: 0.97 | G22: 0.67 | H22: 0.77 | I22: 0.87 | J22: 0.97 | K22: 1.07
A23: Scotland | B23: Return on Assets | C23: 1.6 | D23: =C23+0.1 -> 1.7 | E23: 1.6 | F23: 1.5 | G23: 3.5 | H23: 3.6 | I23: 4.25 | J23: 5.0625 | K23: 6.078125
A24: Scotland | B24: Return on Equity | C24: 22.4 | D24: 22.5 | E24: 25.8 | F24: 24.7 | G24: 28.6 | H24: 29.6 | I24: 31.75 | J24: 26.6875 | K24: 23.859375
A25: Scotland | B25: Net Interest Margin | C25: 6.5 | D25: 6.6 | E25: 7.3 | F25: 7.3 | G25: 9.4 | H25: 9.7 | I25: 9.875 | J25: 10 | K25: 9.7
A26: Scotland | B26: Efficiency Ratio | C26: 1.64 | D26: 1.74 | E26: 1.84 | F26: 1.94 | G26: 1.874 | H26: 1.88 | I26: 2.1 | J26: 2.375 | K26: 2.21875
A27: Scotland | B27: Assets | C27: 270000 | D27: 270000.1 | E27: 240000 | F27: 200000 | G27: 295000 | H27: 340000 | I27: 387500 | J27: 484375 | K27: 605468.75
A28: Scotland | B28: Loans | C28: 157961.5 | D28: 157961.6 | E28: 129450 | F28: 169382.5 | G28: 176450 | H28: 160492 | I28: 200615 | J28: 250768.75 | K28: 313460.9375
A29: Scotland | B29: Core Deposits | C29: 146825.5 | D29: 146825.6 | E29: 154465.5 | F29: 137450 | G29: 164575 | H29: 152959 | I29: 147959 | J29: 153561.5 | K29: 147959
A30: Scotland | B30: Stockholder's Equity | C30: 14375 | D30: 14375.1 | E30: 15770 | F30: 16350 | G30: 16935 | H30: 17450 | I30: 17950 | J30: 18450 | K30: 18950
A31: Scotland | B31: Non-Performing Loans / Total Loans | C31: 0.7 | D31: 0.8 | E31: 0.5 | F31: 0.4 | G31: 2.2 | H31: 2.3 | I31: 2.7 | J31: 2.5 | K31: 2.3
A32: Scotland | B32: Allowance / Total Loans | C32: 1.9 | D32: 2 | E32: 2 | F32: 2 | G32: 4.1 | H32: 4.2 | I32: 3.9 | J32: 3.9 | K32: 4
A33: Scotland | B33: Allowance / Non-Performing Loans | C33: 2.45 | D33: 2.55 | E33: 2.55 | F33: 2.65 | G33: 4.7 | H33: 4.9 | I33: 4.9 | J33: 4.6 | K33: 4.9
A34: Scotland | B34: Net Charge Offs / Average Total Loans | C34: 0.7 | D34: 0.8 | E34: 0.6 | F34: 0.6 | G34: 2.5 | H34: 2.4 | I34: 2.3 | J34: 2.6 | K34: 2.5
A36: Wales | B36: Net Income | C36: 8140 | D36: 8910 | E36: 9130 | F36: 16560 | G36: 11220 | H36: 12100 | I36: 12320 | J36: 12760 | K36: 13530
A37: Wales | B37: Revenue | C37: 31790 | D37: 36925.9 | E37: 37962.1 | F37: 39245.8 | G37: 42873.6 | H37: 55015.4 | I37: 55019.25 | J37: 61774.0625 | K37: 85967.57812
A38: Wales | B38: Diluted Earnings Per Share | C38: 4.1 | D38: 4.2 | E38: 4.35 | F38: 4.4 | G38: 4.45 | H38: 4.6 | I38: 5.5 | J38: 6.625 | K38: 8.03125
A39: Wales | B39: Dividends Per Share | C39: 1.97 | D39: 2.05 | E39: 2.18 | F39: 2.5 | G39: 2.23 | H39: 2.28 | I39: 2.6 | J39: 3 | K39: 3.5
A40: Wales | B40: Return on Assets | C40: 3.6 | D40: 3.4 | E40: 3.6 | F40: 3.5 | G40: 3.5 | H40: 3.6 | I40: 4.25 | J40: 5.0625 | K40: 6.078125
A41: Wales | B41: Return on Equity | C41: 24.4 | D41: 23.7 | E41: 27.8 | F41: 26.7 | G41: 28.6 | H41: 29.6 | I41: 31.75 | J41: 26.6875 | K41: 23.859375
A42: Wales | B42: Net Interest Margin | C42: 8.5 | D42: 8.8 | E42: 9.3 | F42: 9.3 | G42: 9.4 | H42: 9.7 | I42: 9.875 | J42: 10 | K42: 9.7
A43: Wales | B43: Efficiency Ratio | C43: 1.84 | D43: 1.9 | E43: 1.85 | F43: 1.87 | G43: 1.84 | H43: 1.88 | I43: 2.1 | J43: 2.375 | K43: 2.71875
A44: Wales | B44: Assets | C44: 396000 | D44: 418500 | E44: 432000 | F44: 468000 | G44: 495000 | H44: 558000 | I44: 697500 | J44: 871875 | K44: 1089843.75
A45: Wales | B45: Loans | C45: 230330.7 | D45: 241110 | E45: 251010 | F45: 251010 | G45: 251010 | H45: 288885.6 | I45: 361107 | J45: 451383.75 | K45: 564229.6875
A46: Wales | B46: Core Deposits | C46: 228285.9 | D46: 236601 | E46: 242037.9 | F46: 247410 | G46: 247410 | H46: 247410 | I46: 284326.2 | J46: 276410.7 | K46: 302326.2
A47: Wales | B47: Stockholder's Equity | C47: 25875 | D47: 21720 | E47: 28386 | F47: 29430 | G47: 20483 | H47: 21410 | I47: 32310 | J47: 33210 | K47: 34110
A48: Wales | B48: Non-Performing Loans / Total Loans | C48: 0.7 | D48: 0.5 | E48: 0.5 | F48: 0.4 | G48: 0.2 | H48: 0.3 | I48: 0.7 | J48: 0.5 | K48: 0.3
A49: Wales | B49: Allowance / Total Loans | C49: 1.9 | D49: 1.9 | E49: 2.5 | F49: 3 | G49: 2.1 | H49: 2.2 | I49: 1.9 | J49: 1.9 | K49: 2
A50: Wales | B50: Allowance / Non-Performing Loans | C50: 2.45 | D50: 2.6 | E50: 3 | F50: 3 | G50: 3 | H50: 2.9 | I50: 2.9 | J50: 2.6 | K50: 2.9
A51: Wales | B51: Net Charge Offs / Average Total Loans | C51: 0.7 | D51: 0.4 | E51: 1 | F51: 1.1 | G51: 2 | H51: 0.4 | I51: 0.3 | J51: 0.6 | K51: 0.5
A53: Northern Ireland | B53: Net Income | C53: 7400 | D53: 8100 | E53: 8300 | F53: 9600 | G53: 10200 | H53: 11000 | I53: 11200 | J53: 11600 | K53: 12300
A54: Northern Ireland | B54: Revenue | C54: 28900 | D54: 33569 | E54: 34511 | F54: 35678 | G54: 38976 | H54: 40014 | I54: 50017.5 | J54: 62521.875 | K54: 78152.34375
A55: Northern Ireland | B55: Diluted Earnings Per Share | C55: 2.1 | D55: 2.2 | E55: 2.35 | F55: 2.4 | G55: 2.45 | H55: 2.6 | I55: 3.5 | J55: 4.625 | K55: 6.03125
A56: Northern Ireland | B56: Dividends Per Share | C56: 1 | D56: 0.5 | E56: 0.5 | F56: 0.5 | G56: 0.5 | H56: 0.28 | I56: 0.6 | J56: 1 | K56: 1.5
A57: Northern Ireland | B57: Return on Assets | C57: 1.6 | D57: 1.4 | E57: 1.6 | F57: 1.5 | G57: 1.5 | H57: 1.6 | I57: 2.25 | J57: 3.0625 | K57: 4.078125
A58: Northern Ireland | B58: Return on Equity | C58: 22.4 | D58: 21.7 | E58: 25.8 | F58: 29.7 | G58: 29.7 | H58: 29.7 | I58: 29.75 | J58: 24.6875 | K58: 21.859375
A59: Northern Ireland | B59: Net Interest Margin | C59: 6.5 | D59: 6.8 | E59: 7.3 | F59: 7.3 | G59: 7.4 | H59: 7.7 | I59: 7.875 | J59: 8 | K59: 7.7
A60: Northern Ireland | B60: Efficiency Ratio | C60: 0.84 | D60: 0.9 | E60: 0.85 | F60: 0.87 | G60: 0.84 | H60: 0.88 | I60: 1.1 | J60: 1.375 | K60: 1.71875
A61: Northern Ireland | B61: Assets | C61: 118800 | D61: 126945 | E61: 132480 | F61: 238080 | G61: 155100 | H61: 176700 | I61: 223200 | J61: 281906.25 | K61: 356015.625
A62: Northern Ireland | B62: Loans | C62: 76776.9 | D62: 80370 | E62: 83670 | F62: 80629.5 | G62: 93870 | H62: 96295.2 | I62: 120369 | J62: 150461.25 | K62: 188076.5625
A63: Northern Ireland | B63: Core Deposits | C63: 228285.9 | D63: 236601 | E63: 242037.9 | F63: 247410 | G63: 247410 | H63: 247410 | I63: 284326.2 | J63: 276410.7 | K63: 302326.2
A64: Northern Ireland | B64: Stockholder's Equity | C64: 8625 | D64: 9240 | E64: 9462 | F64: 9810 | G64: 10161 | H64: 10470 | I64: 10770 | J64: 11070 | K64: 11370
A65: Northern Ireland | B65: Non-Performing Loans / Total Loans | C65: 0.7 | D65: 0.5 | E65: 0.5 | F65: 0.4 | G65: 0.2 | H65: 0.3 | I65: 0.7 | J65: 0.5 | K65: 0.3
A66: Northern Ireland | B66: Allowance / Total Loans | C66: 1.9 | D66: 1.9 | E66: 2 | F66: 2 | G66: 2.1 | H66: 2.2 | I66: 1.9 | J66: 1.9 | K66: 2
A67: Northern Ireland | B67: Allowance / Non-Performing Loans | C67: 2.45 | D67: 2.6 | E67: 2.55 | F67: 2.65 | G67: 2.7 | H67: 2.9 | I67: 2.9 | J67: 2.6 | K67: 2.9
A68: Northern Ireland | B68: Net Charge Offs / Average Total Loans | C68: 2 | D68: 1.4 | E68: 3 | F68: 2 | G68: 3 | H68: 2 | I68: 2.5 | J68: 1.6 | K68: 1.5

Sheet Plan
A1: Region | B1: Activity | C1: =OFFSET(Lists!$E$1,COLUMN()-2,0,1,1) -> FY 12 | D1: =OFFSET(Lists!$E$1,COLUMN()-2,0,1,1) -> FY 13 | E1: =OFFSET(Lists!$E$1,COLUMN()-2,0,1,1) -> FY 14 | F1: =OFFSET(Lists!$E$1,COLUMN()-2,0,1,1) -> FY 15 | G1: =OFFSET(Lists!$E$1,COLUMN()-2,0,1,1) -> FY 16 | H1: =OFFSET(Lists!$E$1,COLUMN()-2,0,1,1) -> FY 17 | I1: =OFFSET(Lists!$E$1,COLUMN()-2,0,1,1) -> FY 18 | J1: =OFFSET(Lists!$E$1,COLUMN()-2,0,1,1) -> FY 19 | K1: =OFFSET(Lists!$E$1,COLUMN()-2,0,1,1) -> FY 20
A2: England | B2: Net Income | C2: 7759.64 | D2: 8164.8 | E2: 8784.72 | F2: 9940.8 | G2: 10395.84 | H2: 9595 | I2: 10659 | J2: 10674.2 | K2: 10090.91
A3: England | B3: Revenue | C3: 28322 | D3: 32561.93 | E3: 32785.45 | F3: 34607.66 | G3: 37806.72 | H3: 39213.72 | I3: 40197.15 | J3: 41671.4375 | K3: 46707.77344
A4: England | B4: Diluted Earnings Per Share | C4: 2.945 | D4: 3.072 | E4: 3.1825 | F4: 3.264 | G4: 3.312 | H4: 3.528 | I4: 4.32 | J4: 5.5125 | K4: 6.6796875
A5: England | B5: Dividends Per Share | C5: 0.9603 | D5: 0.9975 | E5: 1.0656 | F5: 1.176 | G5: 1.2054 | H5: 1.2416 | I5: 1.568 | J5: 1.98 | K5: 2.4
A6: England | B6: Return on Assets | C6: 2.8028 | D6: 2.51136 | E6: 2.5441 | F6: 2.58875 | G6: 2.5725 | H6: 2.75418 | I6: 3.3345 | J6: 4.0210625 | K6: 5.424453125
A7: England | B7: Return on Equity | C7: 23.166 | D7: 21.565 | E7: 26.532 | F7: 25.443 | G7: 27.324 | H7: 27.456 | I7: 30.135 | J7: 25.430625 | K7: 22.4021875
A8: England | B8: Net Interest Margin | C8: 7.125 | D8: 7.644 | E8: 7.968 | F8: 8.051 | G8: 8.316 | H8: 8.613 | I8: 8.78625 | J8: 8.64 | K8: 8.352
A9: England | B9: Efficiency Ratio | C9: 0.8316 | D9: 0.864 | E9: 0.8415 | F9: 0.8265 | G9: 0.8232 | H9: 0.836 | I9: 1.067 | J9: 1.33375 | K9: 1.65
A10: England | B10: Assets | C10: 466092 | D10: 506385 | E10: 512160 | F10: 539136 | G10: 564300 | H10: 619938 | I10: 661297.5 | J10: 704899 | K10: 648420
A11: England | B11: Loans | C11: 253363.77 | D11: 259863 | E11: 267744 | F11: 289802.05 | G11: 300384 | H11: 304934.8 | I11: 286168.5 | J11: 283826.75 | K11: 320383.4375
A12: England | B12: Core Deposits | C12: 243504.96 | D12: 260261.1 | E12: 266241.69 | F12: 272151 | G12: 280475.5 | H12: 299799.64 | I12: 306440.46 | J12: 291766.85 | K12: 322481.28
A13: England | B13: Stockholder's Equity | C13: 27312.5 | D13: 30492 | E13: 31224.6 | F13: 32373 | G13: 32853.9 | H13: 34202 | I13: 35182 | J13: 35424 | K13: 36005
A14: England | B14: Non-Performing Loans / Total Loans | C14: 1.683 | D14: 1.425 | E14: 1.44 | F14: 1.386 | G14: 1.14 | H14: 1.274 | I14: 1.615 | J14: 1.47 | K14: 1.248
A15: England | B15: Allowance / Total Loans | C15: 2.871 | D15: 2.871 | E15: 2.94 | F15: 2.94 | G15: 3.069 | H15: 3.04 | I15: 2.813 | J15: 2.871 | K15: 2.88
A16: England | B16: Allowance / Non-Performing Loans | C16: 3.722895 | D16: 3.5568 | E16: 3.51237 | F16: 3.75585 | G16: 3.76512 | H16: 4.08954 | I16: 4.01544 | J16: 3.591 | K16: 4.04352
A17: England | B17: Net Charge Offs / Average Total Loans | C17: 1.615 | D17: 1.372 | E17: 1.52 | F17: 1.552 | G17: 1.425 | H17: 1.33 | I17: 1.287 | J17: 1.52 | K17: 1.485
C18: 0 | D18: 0 | E18: 0 | F18: 0 | G18: 0 | H18: 0 | I18: 0 | J18: 0 | K18: 0
A19: Scotland | B19: Net Income | C19: 3296.7 | D19: 3574.935 | E19: 3779.82 | F19: 4330.08 | G19: 4554.3 | H19: 5068.25 | I19: 5107.2 | J19: 4602.24 | K19: 5068.25
A20: Scotland | B20: Revenue | C20: 12984.192 | D20: 16179.63697 | E20: 16802.1635 | F20: 17409.82934 | G20: 19405.0201 | H20: 19358.27302 | I20: 23763.51432 | J20: 17924.86752 | K20: 19185.31251
A21: Scotland | B21: Diluted Earnings Per Share | C21: 2.079 | D21: 2.09 | E21: 2.256 | F21: 2.304 | G21: 2.401 | H21: 3.04 | I21: 4.455 | J21: 5.56875 | K21: 3.528
A22: Scotland | B22: Dividends Per Share | C22: 0.669397 | D22: 0.769307 | E22: 0.869652 | F22: 0.97679 | G22: 0.662496 | H22: 0.769307 | I22: 0.912282 | J22: 0.959136 | K22: 1.087655
A23: Scotland | B23: Return on Assets | C23: 1.584 | D23: 1.683 | E23: 1.52 | F23: 1.485 | G23: 3.36 | H23: 3.456 | I23: 4.1225 | J23: 4.86 | K23: 5.77421875
A24: Scotland | B24: Return on Equity | C24: 21.504 | D24: 21.6 | E24: 25.026 | F24: 23.959 | G24: 28.314 | H24: 28.712 | I24: 31.4325 | J24: 25.886875 | K24: 22.66640625
A25: Scotland | B25: Net Interest Margin | C25: 6.435 | D25: 6.534 | E25: 6.935 | F25: 7.227 | G25: 9.306 | H25: 9.409 | I25: 9.48 | J25: 9.5 | K25: 9.409
A26: Scotland | B26: Efficiency Ratio | C26: 1.558 | D26: 1.6878 | E26: 1.7848 | F26: 1.8818 | G26: 1.81778 | H26: 1.8236 | I26: 2.016 | J26: 2.3275 | K26: 2.1521875
A27: Scotland | B27: Assets | C27: 261900 | D27: 264600.098 | E27: 230400 | F27: 194000 | G27: 286150 | H27: 333200 | I27: 372000 | J27: 479531.25 | K27: 599414.0625
A28: Scotland | B28: Loans | C28: 156381.885 | D28: 153222.752 | E28: 128155.5 | F28: 160913.375 | G28: 167627.5 | H28: 157282.16 | I28: 190584.25 | J28: 238230.3125 | K28: 297787.8906
A29: Scotland | B29: Core Deposits | C29: 156662.8085 | D29: 146590.679 | E29: 158481.603 | F29: 148171.1 | G29: 168853.95 | H29: 155895.8128 | I29: 147944.2041 | J29: 153500.0754 | K29: 156599.8056
A30: Scotland | B30: Stockholder's Equity | C30: 13943.75 | D30: 13800.096 | E30: 15612.3 | F30: 16186.5 | G30: 16257.6 | H30: 16752 | I30: 17770.5 | J30: 17527.5 | K30: 18002.5
A31: Scotland | B31: Non-Performing Loans / Total Loans | C31: 0.679 | D31: 0.76 | E31: 0.475 | F31: 0.388 | G31: 2.156 | H31: 2.277 | I31: 2.592 | J31: 2.45 | K31: 2.208
A32: Scotland | B32: Allowance / Total Loans | C32: 1.862 | D32: 1.96 | E32: 1.92 | F32: 1.98 | G32: 3.977 | H32: 4.116 | I32: 3.861 | J32: 3.744 | K32: 3.92
A33: Scotland | B33: Allowance / Non-Performing Loans | C33: 2.39904 | D33: 2.52144 | E33: 2.6163 | F33: 2.77879 | G33: 4.83254 | H33: 5.13324 | I33: 5.0421 | J33: 4.5448 | K33: 4.70155
A34: Scotland | B34: Net Charge Offs / Average Total Loans | C34: 0.686 | D34: 0.792 | E34: 0.57 | F34: 0.576 | G34: 2.4 | H34: 2.328 | I34: 2.231 | J34: 2.522 | K34: 2.45
C35: 0 | D35: 0 | E35: 0 | F35: 0 | G35: 0 | H35: 0 | I35: 0 | J35: 0 | K35: 0
A36: Wales | B36: Net Income | C36: 8058.6 | D36: 8642.7 | E36: 8856.1 | F36: 16063.2 | G36: 10883.4 | H36: 11858 | I36: 11950.4 | J36: 12122 | K36: 12853.5
A37: Wales | B37: Revenue | C37: 30836.3 | D37: 35079.605 | E37: 36823.237 | F37: 38460.884 | G37: 42016.128 | H37: 52264.63 | I37: 52818.48 | J37: 59303.1 | K37: 83388.55078
A38: Wales | B38: Diluted Earnings Per Share | C38: 4.018 | D38: 4.074 | E38: 4.263 | F38: 4.18 | G38: 4.4055 | H38: 4.37 | I38: 5.39 | J38: 6.55875 | K38: 7.71
A39: Wales | B39: Dividends Per Share | C39: 1.949906 | D39: 2.0254 | E39: 2.287692 | F39: 2.448 | G39: 2.314517 | H39: 2.366412 | I39: 2.6208 | J39: 3.0555 | K39: 3.70755
A40: Wales | B40: Return on Assets | C40: 3.456 | D40: 3.332 | E40: 3.42 | F40: 3.395 | G40: 3.36 | H40: 3.492 | I40: 4.1225 | J40: 4.86 | K40: 5.89578125
A41: Wales | B41: Return on Equity | C41: 23.18 | D41: 22.752 | E41: 26.966 | F41: 26.433 | G41: 28.028 | H41: 29.008 | I41: 30.7975 | J41: 25.353125 | K41: 22.905
A42: Wales | B42: Net Interest Margin | C42: 9.0695 | D42: 8.53248 | E42: 9.29628 | F42: 9.38184 | G42: 9.9264 | H42: 9.5836 | I42: 10.1436 | J42: 10.67 | K42: 9.40512
A43: Wales | B43: Efficiency Ratio | C43: 1.7664 | D43: 1.862 | E43: 1.8315 | F43: 1.7952 | G43: 1.8032 | H43: 1.8612 | I43: 2.079 | J43: 2.35125 | K43: 2.664375
A44: Wales | B44: Assets | C44: 376200 | D44: 410130 | E44: 410400 | F44: 449280 | G44: 480150 | H44: 541260 | I44: 676575 | J44: 845718.75 | K44: 1035351.562
A45: Wales | B45: Loans | C45: 223420.779 | D45: 236287.8 | E45: 240969.6 | F45: 245989.8 | G45: 248499.9 | H45: 285996.744 | I45: 353884.86 | J45: 446869.9125 | K45: 536018.2031
A46: Wales | B46: Core Deposits | C46: 223720.182 | D46: 234234.99 | E46: 229936.005 | F46: 244935.9 | G46: 235039.5 | H46: 242461.8 | I46: 272953.152 | J46: 262590.165 | K46: 293256.414
A47: Wales | B47: Stockholder's Equity | C47: 26640.9 | D47: 21279.084 | E47: 30631.3326 | F47: 30259.926 | G47: 20843.5008 | H47: 22679.613 | I47: 34196.904 | J47: 32857.974 | K47: 35795.034
A48: Wales | B48: Non-Performing Loans / Total Loans | C48: 0.665 | D48: 0.475 | E48: 0.485 | F48: 0.384 | G48: 0.19 | H48: 0.285 | I48: 0.665 | J48: 0.48 | K48: 0.297
A49: Wales | B49: Allowance / Total Loans | C49: 1.881 | D49: 1.824 | E49: 2.375 | F49: 2.97 | G49: 2.016 | H49: 2.156 | I49: 1.824 | J49: 1.824 | K49: 1.98
A50: Wales | B50: Allowance / Non-Performing Loans | C50: 2.352 | D50: 2.548 | E50: 2.91 | F50: 2.88 | G50: 2.85 | H50: 2.755 | I50: 2.842 | J50: 2.496 | K50: 2.871
A51: Wales | B51: Net Charge Offs / Average Total Loans | C51: 0.665 | D51: 0.384 | E51: 0.97 | F51: 1.067 | G51: 1.98 | H51: 0.392 | I51: 0.285 | J51: 0.576 | K51: 0.485
C52: 0 | D52: 0 | E52: 0 | F52: 0 | G52: 0 | H52: 0 | I52: 0 | J52: 0 | K52: 0
A53: Northern Ireland | B53: Net Income | C53: 7252 | D53: 7695 | E53: 7885 | F53: 9120 | G53: 10098 | H53: 10890 | I53: 10752 | J53: 11020 | K53: 11931
A54: Northern Ireland | B54: Revenue | C54: 28033 | D54: 33233.31 | E54: 33475.67 | F54: 34250.88 | G54: 38196.48 | H54: 39613.86 | I54: 49017.15 | J54: 61271.4375 | K54: 75026.25
A55: Northern Ireland | B55: Diluted Earnings Per Share | C55: 2.22453 | D55: 2.22068 | E55: 2.302295 | F55: 2.4444 | G55: 2.57103 | H55: 2.52096 | I55: 3.7345 | J55: 4.577825 | K55: 6.0288375
A56: Northern Ireland | B56: Dividends Per Share | C56: 0.96 | D56: 0.49 | E56: 0.485 | F56: 0.49 | G56: 0.495 | H56: 0.2716 | I56: 0.594 | J56: 0.96 | K56: 1.47
A57: Northern Ireland | B57: Return on Assets | C57: 1.568 | D57: 1.344 | E57: 1.552 | F57: 1.47 | G57: 1.425 | H57: 1.52 | I57: 2.205 | J57: 2.909375 | K57: 4.03734375
A58: Northern Ireland | B58: Return on Equity | C58: 21.28 | D58: 20.615 | E58: 25.542 | F58: 29.106 | G58: 28.215 | H58: 28.809 | I58: 28.2625 | J58: 23.946875 | K58: 21.20359375
A59: Northern Ireland | B59: Net Interest Margin | C59: 6.305 | D59: 6.596 | E59: 6.935 | F59: 7.081 | G59: 7.03 | H59: 7.546 | I59: 7.7175 | J59: 7.68 | K59: 7.623
A60: Northern Ireland | B60: Efficiency Ratio | C60: 0.8148 | D60: 0.882 | E60: 0.816 | F60: 0.8352 | G60: 0.798 | H60: 0.8448 | I60: 1.078 | J60: 1.3475 | K60: 1.684375
A61: Northern Ireland | B61: Assets | C61: 120760.2 | D61: 132657.525 | E61: 136083.456 | F61: 259269.12 | G61: 156185.7 | H61: 176417.28 | I61: 226882.8 | J61: 281201.4844 | K61: 359148.5625
A62: Northern Ireland | B62: Loans | C62: 73705.824 | D62: 78762.6 | E62: 82833.3 | F62: 77404.32 | G62: 91992.6 | H62: 95332.248 | I62: 114350.55 | J62: 147452.025 | K62: 186195.7969
A63: Northern Ireland | B63: Core Deposits | C63: 216871.605 | D63: 227136.96 | E63: 237197.142 | F63: 237513.6 | G63: 242461.8 | H63: 237513.6 | I63: 270109.89 | J63: 273646.593 | K63: 299302.938
A64: Northern Ireland | B64: Stockholder's Equity | C64: 8193.75 | D64: 9147.6 | E64: 9367.38 | F64: 9711.9 | G64: 9754.56 | H64: 10051.2 | I64: 10231.5 | J64: 10627.2 | K64: 10801.5
A65: Northern Ireland | B65: Non-Performing Loans / Total Loans | C65: 0.665 | D65: 0.49 | E65: 0.475 | F65: 0.384 | G65: 0.196 | H65: 0.285 | I65: 0.679 | J65: 0.49 | K65: 0.291
A66: Northern Ireland | B66: Allowance / Total Loans | C66: 1.96745 | D66: 2.05029 | E66: 1.9992 | F66: 2.1384 | G66: 2.22033 | H66: 2.22156 | I66: 1.84224 | J66: 1.87986 | K66: 2.016
A67: Northern Ireland | B67: Allowance / Non-Performing Loans | C67: 2.3765 | D67: 2.496 | E67: 2.499 | F67: 2.5175 | G67: 2.619 | H67: 2.842 | I67: 2.842 | J67: 2.47 | K67: 2.842
A68: Northern Ireland | B68: Net Charge Offs / Average Total Loans | C68: 1.94 | D68: 1.33 | E68: 2.85 | F68: 1.92 | G68: 2.97 | H68: 1.98 | I68: 2.4 | J68: 1.552 | K68: 1.44

Sheet Cust
A1: Satisfaction | B1: States | C1: PY | D1: CY
A2: Customer | B2: England | C2: 0.87 | D2: 0.83
A3: Customer | B3: Scotland | C3: 0.8 | D3: 0.85
A4: Customer | B4: Wales | C4: 0.88 | D4: 0.92
A5: Customer | B5: Northern Ireland | C5: 0.83 | D5: 0.81

Sheet Hires
A1: Type | B1: State | C1: =TRANSPOSE(Lists!D2:D12) -> FY 10 | D1: FY 11 | E1: FY 12 | F1: FY 13 | G1: FY 14 | H1: FY 15 | I1: FY 16 | J1: FY 17 | K1: FY 18 | L1: FY 19 | M1: FY 20
A2: Termination | B2: England | C2: -416.16 | D2: -234.78 | E2: -612 | F2: -511 | G2: -408 | H2: -301 | I2: -354 | J2: -102 | K2: -408 | L2: -102 | M2: -321
A3: New Hires | B3: England | C3: 599.76 | D3: 264.48 | E3: 408 | F3: 514 | G3: 612 | H3: 232 | I3: 387 | J3: 418 | K3: 714 | L3: 517 | M3: 411
A4: Termination | B4: Scotland | C4: -313.04 | D4: -189.72 | E4: -816 | F4: -301 | G4: -301 | H4: -204 | I4: -354 | J4: -204 | K4: -612 | L4: -102 | M4: -102
A5: New Hires | B5: Scotland | C5: 278.88 | D5: 220.9 | E5: 612 | F5: 714 | G5: 332 | H5: 235 | I5: 519 | J5: 412 | K5: 1020 | L5: 1122 | M5: 714
A6: Termination | B6: Wales | C6: -233.22 | D6: -357.12 | E6: -714 | F6: -312 | G6: -299 | H6: -288 | I6: -204 | J6: -354 | K6: -354 | L6: -102 | M6: -102
A7: New Hires | B7: Wales | C7: 473.28 | D7: 705.18 | E7: 455 | F7: 1122 | G7: 408 | H7: 511 | I7: 432 | J7: 612 | K7: 918 | L7: 1428 | M7: 714
A8: Termination | B8: Northern Ireland | C8: -534.48 | D8: -240.8 | E8: -408 | F8: -301 | G8: -408 | H8: -301 | I8: -298 | J8: -300 | K8: -204 | L8: -102 | M8: -204
A9: New Hires | B9: Northern Ireland | C9: 369.74 | D9: 257.52 | E9: 408 | F9: 1122 | G9: 278 | H9: 232 | I9: 333 | J9: 816 | K9: 714 | L9: 530 | M9: 714

Sheet Sick
A1: Avg Sick Days | B1: Country | C1: Jul | D1: Aug | E1: Sep | F1: Oct | G1: Nov | H1: Dec | I1: Jan | J1: Feb | K1: Mar | L1: Apr | M1: May | N1: Jun
A2: CY | B2: England | C2: 7.7616 | D2: 9.7944 | E2: 7.4844 | F2: 10.3488 | G2: 9.3324 | H2: 9.9792 | I2: 8.5008 | J2: 10.3488 | K2: 8.6856 | L2: 7.9464 | M2: 8.4084 | N2: 8.778
A3: CY | B3: Scotland | C3: 7.7 | D3: 8.9133 | E3: 6.5846 | F3: 8.9936 | G3: 8.9133 | H3: 9.0739 | I3: 7.6285 | J3: 8.9133 | K3: 6.6649 | L3: 6.5043 | M3: 8.2709 | N3: 8.5921
A4: CY | B4: Wales | C4: 5.9345 | D4: 6.5065 | E4: 6.9355 | F4: 6.5065 | G4: 7.007 | H4: 5.9345 | I4: 7.7935 | J4: 5.7915 | K4: 7.7935 | L4: 5.7915 | M4: 6.9355 | N4: 6.7925
A5: CY | B5: Northern Ireland | C5: 8.272 | D5: 9.328 | E5: 8.36 | F5: 8.8 | G5: 9.68 | H5: 9.944 | I5: 9.416 | J5: 10.032 | K5: 7.128 | L5: 10.472 | M5: 10.56 | N5: 7.04
A7: PY | B7: England | C7: 6.56208 | D7: 8.28072 | E7: 6.25968 | F7: 8.4672 | G7: 7.29624 | H7: 7.34832 | I7: 6.25968 | J7: 7.5264 | K7: 6.63264 | L7: 5.92368 | M7: 6.65028 | N7: 7.581
A8: PY | B8: Scotland | C8: 7.2 | D8: 7.37373 | E8: 6.46488 | F8: 7.68544 | G8: 7.69785 | H8: 7.75406 | I8: 6.2415 | J8: 8.75124 | K8: 5.57428 | L8: 5.73561 | M8: 6.7671 | N8: 7.49856
A9: PY | B9: Wales | C9: 4.6397 | D9: 5.02775 | E9: 5.48535 | F9: 5.5601 | G9: 5.9241 | H9: 5.12525 | I9: 6.02225 | J9: 4.26465 | K9: 6.2348 | L9: 4.8438 | M9: 5.98975 | N9: 5.61925
A10: PY | B10: Northern Ireland | C10: 7.2192 | D10: 8.904 | E10: 8.436 | F10: 7.76 | G10: 10.296 | H10: 9.3112 | I10: 9.0736 | J10: 9.3024 | K10: 6.156 | L10: 9.1392 | M10: 8.64 | N10: 6.016

Sheet FTE
A1: Region | B1: Metric | C1: Year | D1: Type | E1: Data
A2: England | B2: FTEs | C2: Prior Yr | D2: Actual | E2: 5217.795153
A3: England | B3: FTEs | C3: Prior Yr | D3: Plan | E3: 5098.33681
A4: England | B4: FTEs | C4: Cur Yr | D4: Actual | E4: 6942.323695
A5: England | B5: FTEs | C5: Cur Yr | D5: Plan | E5: 6973.198185
A6: England | B6: FTEs | C6: Cur Yr | D6: Forecast | E6: 6673.198185
A8: Scotland | B8: FTEs | C8: Prior Yr | D8: Actual | E8: 1721.8724
A9: Scotland | B9: FTEs | C9: Prior Yr | D9: Plan | E9: 1682.451147
A10: Scotland | B10: FTEs | C10: Cur Yr | D10: Actual | E10: 2290.966819
A11: Scotland | B11: FTEs | C11: Cur Yr | D11: Plan | E11: 2200
A12: Scotland | B12: FTEs | C12: Cur Yr | D12: Forecast | E12: 2202.155401
A14: Wales | B14: FTEs | C14: Prior Yr | D14: Actual | E14: 1147.914934
A15: Wales | B15: FTEs | C15: Prior Yr | D15: Plan | E15: 1121.634098
A16: Wales | B16: FTEs | C16: Cur Yr | D16: Actual | E16: 1527.311213
A17: Wales | B17: FTEs | C17: Cur Yr | D17: Plan | E17: 1470
A18: Wales | B18: FTEs | C18: Cur Yr | D18: Forecast | E18: 1468.103601
A20: Northern Ireland | B20: FTEs | C20: Prior Yr | D20: Actual | E20: 581.7795153
A21: Northern Ireland | B21: FTEs | C21: Prior Yr | D21: Plan | E21: 509.833681
A22: Northern Ireland | B22: FTEs | C22: Cur Yr | D22: Actual | E22: 694.2323695
A23: Northern Ireland | B23: FTEs | C23: Cur Yr | D23: Plan | E23: 550
A24: Northern Ireland | B24: FTEs | C24: Cur Yr | D24: Forecast | E24: 607.3198185

Sheet General
A1: Region | B1: Operation | C1: % Result
A2: England | B2: Home Loans | C2: 0.12
A3: England | B3: Credit Cards | C3: 0.25
A4: England | B4: Houshold Lending | C4: 0.04
A5: England | B5: Other Bank Income | C5: 0.02
A6: England | B6: Retail Deposits | C6: 0.06
A7: England | B7: Business Lending | C7: 0.18
A8: England | B8: Asset Finance | C8: 0.2
A9: England | B9: Equities Trading | C9: 0.1
A10: England | B10: FX Trading | C10: 0.03
A12: Scotland | B12: Home Loans | C12: 0.18
A13: Scotland | B13: Credit Cards | C13: 0.22
A14: Scotland | B14: Houshold Lending | C14: 0.06
A15: Scotland | B15: Other Bank Income | C15: 0.01
A16: Scotland | B16: Retail Deposits | C16: 0.04
A17: Scotland | B17: Business Lending | C17: 0.12
A18: Scotland | B18: Asset Finance | C18: 0.15
A19: Scotland | B19: Equities Trading | C19: 0.14
A20: Scotland | B20: FX Trading | C20: 0.08
A22: Wales | B22: Home Loans | C22: 0.22
A23: Wales | B23: Credit Cards | C23: 0.3
A24: Wales | B24: Houshold Lending | C24: 0.08
A25: Wales | B25: Other Bank Income | C25: 0.01
A26: Wales | B26: Retail Deposits | C26: 0.03
A27: Wales | B27: Business Lending | C27: 0.06
A28: Wales | B28: Asset Finance | C28: 0.1
A29: Wales | B29: Equities Trading | C29: 0.12
A30: Wales | B30: FX Trading | C30: 0.08
A32: Northern Ireland | B32: Home Loans | C32: 0.27
A33: Northern Ireland | B33: Credit Cards | C33: 0.2
A34: Northern Ireland | B34: Houshold Lending | C34: 0.07
A35: Northern Ireland | B35: Other Bank Income | C35: 0.03
A36: Northern Ireland | B36: Retail Deposits | C36: 0.03
A37: Northern Ireland | B37: Business Lending | C37: 0.06
A38: Northern Ireland | B38: Asset Finance | C38: 0.14
A39: Northern Ireland | B39: Equities Trading | C39: 0.1
A40: Northern Ireland | B40: FX Trading | C40: 0.1

Sheet Other
A1: Region | B1: Activity | C1: Current Mth
A2: England | B2: Interest Income | C2: 166.6666667
A3: England | B3: Funds Mgt Income | C3: 333.3333333
A4: England | B4: Insurance Income | C4: 250
A5: England | B5: Other Bank Income | C5: 83.33333333
A6: England | B6: Net Income | C6: 833.3333333
A7: England | B7: Operational Expenses | C7: 416.6666667
A8: England | B8: Loan Imparement Expenses | C8: 104.1666667
A9: England | B9: Net Expenses | C9: 520.8333333
A10: England | B10: Net Profit | C10: 312.5
A12: Scotland | B12: Interest Income | C12: =Data!$H$19/12*0.2 -> 87.08333333
A13: Scotland | B13: Funds Mgt Income | C13: =Data!$H$19/12*0.4 -> 174.1666667
A14: Scotland | B14: Insurance Income | C14: =Data!$H$19/12*0.3 -> 130.625
A15: Scotland | B15: Other Bank Income | C15: =Data!$H$19/12*0.1 -> 43.54166667
A16: Scotland | B16: Net Income | C16: =SUM(C12:C15) -> 435.4166667
A17: Scotland | B17: Operational Expenses | C17: =C16/2 -> 217.7083333
A18: Scotland | B18: Loan Imparement Expenses | C18: =C17/4 -> 54.42708333
A19: Scotland | B19: Net Expenses | C19: =SUM(C17:C18) -> 272.1354167
A20: Scotland | B20: Net Profit | C20: =C16-C19 -> 163.28125
A22: Wales | B22: Interest Income | C22: =Data!$H$36/12*0.2 -> 201.6666667
A23: Wales | B23: Funds Mgt Income | C23: =Data!$H$36/12*0.4 -> 403.3333333
A24: Wales | B24: Insurance Income | C24: =Data!$H$36/12*0.3 -> 302.5
A25: Wales | B25: Other Bank Income | C25: =Data!$H$36/12*0.1 -> 100.8333333
A26: Wales | B26: Net Income | C26: =SUM(C22:C25) -> 1008.333333
A27: Wales | B27: Operational Expenses | C27: =C26/2 -> 504.1666667
A28: Wales | B28: Loan Imparement Expenses | C28: =C27/4 -> 126.0416667
A29: Wales | B29: Net Expenses | C29: =SUM(C27:C28) -> 630.2083333
A30: Wales | B30: Net Profit | C30: =C26-C29 -> 378.125
A32: Northern Ireland | B32: Interest Income | C32: =Data!$H$53/12*0.2 -> 183.3333333
A33: Northern Ireland | B33: Funds Mgt Income | C33: =Data!$H$53/12*0.4 -> 366.6666667
A34: Northern Ireland | B34: Insurance Income | C34: =Data!$H$53/12*0.3 -> 275
A35: Northern Ireland | B35: Other Bank Income | C35: =Data!$H$53/12*0.1 -> 91.66666667
A36: Northern Ireland | B36: Net Income | C36: =SUM(C32:C35) -> 916.6666667
A37: Northern Ireland | B37: Operational Expenses | C37: =C36/2 -> 458.3333333
A38: Northern Ireland | B38: Loan Imparement Expenses | C38: =C37/4 -> 114.5833333
A39: Northern Ireland | B39: Net Expenses | C39: =SUM(C37:C38) -> 572.9166667
A40: Northern Ireland | B40: Net Profit | C40: =C36-C39 -> 343.75

Sheet Calcs
A2: Graph Data | B2: =Summary!J10 -> FY 12 | C2: =Summary!K10 -> FY 13 | D2: =Summary!L10 -> FY 14 | E2: =Summary!M10 -> FY 15 | F2: =Summary!N10 -> FY 16 | G2: =Summary!O10 -> FY 17
A3: =Lists!B3 -> Net Interest Margin | B3: =SUMPRODUCT((Data!$B$2:$B$68=$A3)*(Data!$A$2:$A$68=$A$7)*(Data!$C$1:$K$1=B$2)*(Data!$C$2:$K$68)) -> 7.5 | C3: =SUMPRODUCT((Data!$B$2:$B$68=$A3)*(Data!$A$2:$A$68=$A$7)*(Data!$C$1:$K$1=C$2)*(Data!$C$2:$K$68)) -> 7.8 | D3: =SUMPRODUCT((Data!$B$2:$B$68=$A3)*(Data!$A$2:$A$68=$A$7)*(Data!$C$1:$K$1=D$2)*(Data!$C$2:$K$68)) -> 8.3 | E3: =SUMPRODUCT((Data!$B$2:$B$68=$A3)*(Data!$A$2:$A$68=$A$7)*(Data!$C$1:$K$1=E$2)*(Data!$C$2:$K$68)) -> 8.3 | F3: =SUMPRODUCT((Data!$B$2:$B$68=$A3)*(Data!$A$2:$A$68=$A$7)*(Data!$C$1:$K$1=F$2)*(Data!$C$2:$K$68)) -> 8.4 | G3: =SUMPRODUCT((Data!$B$2:$B$68=$A3)*(Data!$A$2:$A$68=$A$7)*(Data!$C$1:$K$1=G$2)*(Data!$C$2:$K$68)) -> 8.7
A4: Plan | B4: =SUMPRODUCT((Plan!$B$2:$B$68=$A3)*(Plan!$A$2:$A$68=$A$7)*(Plan!$C$1:$K$1=B$2)*(Plan!$C$2:$K$68)) -> 7.125 | C4: =SUMPRODUCT((Plan!$B$2:$B$68=$A3)*(Plan!$A$2:$A$68=$A$7)*(Plan!$C$1:$K$1=C$2)*(Plan!$C$2:$K$68)) -> 7.644 | D4: =SUMPRODUCT((Plan!$B$2:$B$68=$A3)*(Plan!$A$2:$A$68=$A$7)*(Plan!$C$1:$K$1=D$2)*(Plan!$C$2:$K$68)) -> 7.968 | E4: =SUMPRODUCT((Plan!$B$2:$B$68=$A3)*(Plan!$A$2:$A$68=$A$7)*(Plan!$C$1:$K$1=E$2)*(Plan!$C$2:$K$68)) -> 8.051 | F4: =SUMPRODUCT((Plan!$B$2:$B$68=$A3)*(Plan!$A$2:$A$68=$A$7)*(Plan!$C$1:$K$1=F$2)*(Plan!$C$2:$K$68)) -> 8.316 | G4: =SUMPRODUCT((Plan!$B$2:$B$68=$A3)*(Plan!$A$2:$A$68=$A$7)*(Plan!$C$1:$K$1=G$2)*(Plan!$C$2:$K$68)) -> 8.613
A7: =Lists!B5 -> England | B7: =Data!C1 -> FY 12 | C7: =Data!D1 -> FY 13 | D7: =Data!E1 -> FY 14 | E7: =Data!F1 -> FY 15 | F7: =Data!G1 -> FY 16 | G7: =Data!H1 -> FY 17 | H7: =Data!I1 -> FY 18 | I7: =Data!J1 -> FY 19 | J7: =Data!K1 -> FY 20
A8: Net Income | B8: =SUMPRODUCT((Data!$B$2:$B$68=$A8)*(Data!$A$2:$A$68=$A$7)*(Data!C$2:C$68)) -> 7400 | C8: =SUMPRODUCT((Data!$B$2:$B$68=$A8)*(Data!$A$2:$A$68=$A$7)*(Data!D$2:D$68)) -> 8100 | D8: =SUMPRODUCT((Data!$B$2:$B$68=$A8)*(Data!$A$2:$A$68=$A$7)*(Data!E$2:E$68)) -> 8300 | E8: =SUMPRODUCT((Data!$B$2:$B$68=$A8)*(Data!$A$2:$A$68=$A$7)*(Data!F$2:F$68)) -> 9600 | F8: =SUMPRODUCT((Data!$B$2:$B$68=$A8)*(Data!$A$2:$A$68=$A$7)*(Data!G$2:G$68)) -> 10200 | G8: =SUMPRODUCT((Data!$B$2:$B$68=$A8)*(Data!$A$2:$A$68=$A$7)*(Data!H$2:H$68)) -> 10000 | H8: =SUMPRODUCT((Data!$B$2:$B$68=$A8)*(Data!$A$2:$A$68=$A$7)*(Data!I$2:I$68)) -> 10200 | I8: =SUMPRODUCT((Data!$B$2:$B$68=$A8)*(Data!$A$2:$A$68=$A$7)*(Data!J$2:J$68)) -> 10600 | J8: =SUMPRODUCT((Data!$B$2:$B$68=$A8)*(Data!$A$2:$A$68=$A$7)*(Data!K$2:K$68)) -> 10300
A9: Revenue | B9: =SUMPRODUCT((Data!$B$2:$B$68=$A9)*(Data!$A$2:$A$68=$A$7)*(Data!C$2:C$68)) -> 28900 | C9: =SUMPRODUCT((Data!$B$2:$B$68=$A9)*(Data!$A$2:$A$68=$A$7)*(Data!D$2:D$68)) -> 33569 | D9: =SUMPRODUCT((Data!$B$2:$B$68=$A9)*(Data!$A$2:$A$68=$A$7)*(Data!E$2:E$68)) -> 34511 | E9: =SUMPRODUCT((Data!$B$2:$B$68=$A9)*(Data!$A$2:$A$68=$A$7)*(Data!F$2:F$68)) -> 35678 | F9: =SUMPRODUCT((Data!$B$2:$B$68=$A9)*(Data!$A$2:$A$68=$A$7)*(Data!G$2:G$68)) -> 38976 | G9: =SUMPRODUCT((Data!$B$2:$B$68=$A9)*(Data!$A$2:$A$68=$A$7)*(Data!H$2:H$68)) -> 40014 | H9: =SUMPRODUCT((Data!$B$2:$B$68=$A9)*(Data!$A$2:$A$68=$A$7)*(Data!I$2:I$68)) -> 41017.5 | I9: =SUMPRODUCT((Data!$B$2:$B$68=$A9)*(Data!$A$2:$A$68=$A$7)*(Data!J$2:J$68)) -> 42521.875 | J9: =SUMPRODUCT((Data!$B$2:$B$68=$A9)*(Data!$A$2:$A$68=$A$7)*(Data!K$2:K$68)) -> 48152.34375
A10: Diluted Earnings Per Share | B10: =SUMPRODUCT((Data!$B$2:$B$68=$A10)*(Data!$A$2:$A$68=$A$7)*(Data!C$2:C$68)) -> 3.1 | C10: =SUMPRODUCT((Data!$B$2:$B$68=$A10)*(Data!$A$2:$A$68=$A$7)*(Data!D$2:D$68)) -> 3.2 | D10: =SUMPRODUCT((Data!$B$2:$B$68=$A10)*(Data!$A$2:$A$68=$A$7)*(Data!E$2:E$68)) -> 3.35 | E10: =SUMPRODUCT((Data!$B$2:$B$68=$A10)*(Data!$A$2:$A$68=$A$7)*(Data!F$2:F$68)) -> 3.4 | F10: =SUMPRODUCT((Data!$B$2:$B$68=$A10)*(Data!$A$2:$A$68=$A$7)*(Data!G$2:G$68)) -> 3.45 | G10: =SUMPRODUCT((Data!$B$2:$B$68=$A10)*(Data!$A$2:$A$68=$A$7)*(Data!H$2:H$68)) -> 3.6 | H10: =SUMPRODUCT((Data!$B$2:$B$68=$A10)*(Data!$A$2:$A$68=$A$7)*(Data!I$2:I$68)) -> 4.5 | I10: =SUMPRODUCT((Data!$B$2:$B$68=$A10)*(Data!$A$2:$A$68=$A$7)*(Data!J$2:J$68)) -> 5.625 | J10: =SUMPRODUCT((Data!$B$2:$B$68=$A10)*(Data!$A$2:$A$68=$A$7)*(Data!K$2:K$68)) -> 7.03125
A11: Dividends Per Share | B11: =SUMPRODUCT((Data!$B$2:$B$68=$A11)*(Data!$A$2:$A$68=$A$7)*(Data!C$2:C$68)) -> 0.97 | C11: =SUMPRODUCT((Data!$B$2:$B$68=$A11)*(Data!$A$2:$A$68=$A$7)*(Data!D$2:D$68)) -> 1.05 | D11: =SUMPRODUCT((Data!$B$2:$B$68=$A11)*(Data!$A$2:$A$68=$A$7)*(Data!E$2:E$68)) -> 1.11 | E11: =SUMPRODUCT((Data!$B$2:$B$68=$A11)*(Data!$A$2:$A$68=$A$7)*(Data!F$2:F$68)) -> 1.2 | F11: =SUMPRODUCT((Data!$B$2:$B$68=$A11)*(Data!$A$2:$A$68=$A$7)*(Data!G$2:G$68)) -> 1.23 | G11: =SUMPRODUCT((Data!$B$2:$B$68=$A11)*(Data!$A$2:$A$68=$A$7)*(Data!H$2:H$68)) -> 1.28 | H11: =SUMPRODUCT((Data!$B$2:$B$68=$A11)*(Data!$A$2:$A$68=$A$7)*(Data!I$2:I$68)) -> 1.6 | I11: =SUMPRODUCT((Data!$B$2:$B$68=$A11)*(Data!$A$2:$A$68=$A$7)*(Data!J$2:J$68)) -> 2 | J11: =SUMPRODUCT((Data!$B$2:$B$68=$A11)*(Data!$A$2:$A$68=$A$7)*(Data!K$2:K$68)) -> 2.5
A12: Return on Assets | B12: =SUMPRODUCT((Data!$B$2:$B$68=$A12)*(Data!$A$2:$A$68=$A$7)*(Data!C$2:C$68)) -> 2.6 | C12: =SUMPRODUCT((Data!$B$2:$B$68=$A12)*(Data!$A$2:$A$68=$A$7)*(Data!D$2:D$68)) -> 2.4 | D12: =SUMPRODUCT((Data!$B$2:$B$68=$A12)*(Data!$A$2:$A$68=$A$7)*(Data!E$2:E$68)) -> 2.6 | E12: =SUMPRODUCT((Data!$B$2:$B$68=$A12)*(Data!$A$2:$A$68=$A$7)*(Data!F$2:F$68)) -> 2.5 | F12: =SUMPRODUCT((Data!$B$2:$B$68=$A12)*(Data!$A$2:$A$68=$A$7)*(Data!G$2:G$68)) -> 2.5 | G12: =SUMPRODUCT((Data!$B$2:$B$68=$A12)*(Data!$A$2:$A$68=$A$7)*(Data!H$2:H$68)) -> 2.6 | H12: =SUMPRODUCT((Data!$B$2:$B$68=$A12)*(Data!$A$2:$A$68=$A$7)*(Data!I$2:I$68)) -> 3.25 | I12: =SUMPRODUCT((Data!$B$2:$B$68=$A12)*(Data!$A$2:$A$68=$A$7)*(Data!J$2:J$68)) -> 4.0625 | J12: =SUMPRODUCT((Data!$B$2:$B$68=$A12)*(Data!$A$2:$A$68=$A$7)*(Data!K$2:K$68)) -> 5.078125
A13: Return on Equity | B13: =SUMPRODUCT((Data!$B$2:$B$68=$A13)*(Data!$A$2:$A$68=$A$7)*(Data!C$2:C$68)) -> 23.4 | C13: =SUMPRODUCT((Data!$B$2:$B$68=$A13)*(Data!$A$2:$A$68=$A$7)*(Data!D$2:D$68)) -> 22.7 | D13: =SUMPRODUCT((Data!$B$2:$B$68=$A13)*(Data!$A$2:$A$68=$A$7)*(Data!E$2:E$68)) -> 26.8 | E13: =SUMPRODUCT((Data!$B$2:$B$68=$A13)*(Data!$A$2:$A$68=$A$7)*(Data!F$2:F$68)) -> 25.7 | F13: =SUMPRODUCT((Data!$B$2:$B$68=$A13)*(Data!$A$2:$A$68=$A$7)*(Data!G$2:G$68)) -> 27.6 | G13: =SUMPRODUCT((Data!$B$2:$B$68=$A13)*(Data!$A$2:$A$68=$A$7)*(Data!H$2:H$68)) -> 28.6 | H13: =SUMPRODUCT((Data!$B$2:$B$68=$A13)*(Data!$A$2:$A$68=$A$7)*(Data!I$2:I$68)) -> 30.75 | I13: =SUMPRODUCT((Data!$B$2:$B$68=$A13)*(Data!$A$2:$A$68=$A$7)*(Data!J$2:J$68)) -> 25.6875 | J13: =SUMPRODUCT((Data!$B$2:$B$68=$A13)*(Data!$A$2:$A$68=$A$7)*(Data!K$2:K$68)) -> 22.859375
A14: Net Interest Margin | B14: =SUMPRODUCT((Data!$B$2:$B$68=$A14)*(Data!$A$2:$A$68=$A$7)*(Data!C$2:C$68)) -> 7.5 | C14: =SUMPRODUCT((Data!$B$2:$B$68=$A14)*(Data!$A$2:$A$68=$A$7)*(Data!D$2:D$68)) -> 7.8 | D14: =SUMPRODUCT((Data!$B$2:$B$68=$A14)*(Data!$A$2:$A$68=$A$7)*(Data!E$2:E$68)) -> 8.3 | E14: =SUMPRODUCT((Data!$B$2:$B$68=$A14)*(Data!$A$2:$A$68=$A$7)*(Data!F$2:F$68)) -> 8.3 | F14: =SUMPRODUCT((Data!$B$2:$B$68=$A14)*(Data!$A$2:$A$68=$A$7)*(Data!G$2:G$68)) -> 8.4 | G14: =SUMPRODUCT((Data!$B$2:$B$68=$A14)*(Data!$A$2:$A$68=$A$7)*(Data!H$2:H$68)) -> 8.7 | H14: =SUMPRODUCT((Data!$B$2:$B$68=$A14)*(Data!$A$2:$A$68=$A$7)*(Data!I$2:I$68)) -> 8.875 | I14: =SUMPRODUCT((Data!$B$2:$B$68=$A14)*(Data!$A$2:$A$68=$A$7)*(Data!J$2:J$68)) -> 9 | J14: =SUMPRODUCT((Data!$B$2:$B$68=$A14)*(Data!$A$2:$A$68=$A$7)*(Data!K$2:K$68)) -> 8.7
A15: Efficiency Ratio | B15: =SUMPRODUCT((Data!$B$2:$B$68=$A15)*(Data!$A$2:$A$68=$A$7)*(Data!C$2:C$68)) -> 0.84 | C15: =SUMPRODUCT((Data!$B$2:$B$68=$A15)*(Data!$A$2:$A$68=$A$7)*(Data!D$2:D$68)) -> 0.9 | D15: =SUMPRODUCT((Data!$B$2:$B$68=$A15)*(Data!$A$2:$A$68=$A$7)*(Data!E$2:E$68)) -> 0.85 | E15: =SUMPRODUCT((Data!$B$2:$B$68=$A15)*(Data!$A$2:$A$68=$A$7)*(Data!F$2:F$68)) -> 0.87 | F15: =SUMPRODUCT((Data!$B$2:$B$68=$A15)*(Data!$A$2:$A$68=$A$7)*(Data!G$2:G$68)) -> 0.84 | G15: =SUMPRODUCT((Data!$B$2:$B$68=$A15)*(Data!$A$2:$A$68=$A$7)*(Data!H$2:H$68)) -> 0.88 | H15: =SUMPRODUCT((Data!$B$2:$B$68=$A15)*(Data!$A$2:$A$68=$A$7)*(Data!I$2:I$68)) -> 1.1 | I15: =SUMPRODUCT((Data!$B$2:$B$68=$A15)*(Data!$A$2:$A$68=$A$7)*(Data!J$2:J$68)) -> 1.375 | J15: =SUMPRODUCT((Data!$B$2:$B$68=$A15)*(Data!$A$2:$A$68=$A$7)*(Data!K$2:K$68)) -> 1.71875
A16: Assets | B16: =SUMPRODUCT((Data!$B$2:$B$68=$A16)*(Data!$A$2:$A$68=$A$7)*(Data!C$2:C$68)) -> 440000 | C16: =SUMPRODUCT((Data!$B$2:$B$68=$A16)*(Data!$A$2:$A$68=$A$7)*(Data!D$2:D$68)) -> 465000 | D16: =SUMPRODUCT((Data!$B$2:$B$68=$A16)*(Data!$A$2:$A$68=$A$7)*(Data!E$2:E$68)) -> 480000 | E16: =SUMPRODUCT((Data!$B$2:$B$68=$A16)*(Data!$A$2:$A$68=$A$7)*(Data!F$2:F$68)) -> 520000 | F16: =SUMPRODUCT((Data!$B$2:$B$68=$A16)*(Data!$A$2:$A$68=$A$7)*(Data!G$2:G$68)) -> 550000 | G16: =SUMPRODUCT((Data!$B$2:$B$68=$A16)*(Data!$A$2:$A$68=$A$7)*(Data!H$2:H$68)) -> 620000 | H16: =SUMPRODUCT((Data!$B$2:$B$68=$A16)*(Data!$A$2:$A$68=$A$7)*(Data!I$2:I$68)) -> 675000 | I16: =SUMPRODUCT((Data!$B$2:$B$68=$A16)*(Data!$A$2:$A$68=$A$7)*(Data!J$2:J$68)) -> 698750 | J16: =SUMPRODUCT((Data!$B$2:$B$68=$A16)*(Data!$A$2:$A$68=$A$7)*(Data!K$2:K$68)) -> 668750
A17: Loans | B17: =SUMPRODUCT((Data!$B$2:$B$68=$A17)*(Data!$A$2:$A$68=$A$7)*(Data!C$2:C$68)) -> 255923 | C17: =SUMPRODUCT((Data!$B$2:$B$68=$A17)*(Data!$A$2:$A$68=$A$7)*(Data!D$2:D$68)) -> 267900 | D17: =SUMPRODUCT((Data!$B$2:$B$68=$A17)*(Data!$A$2:$A$68=$A$7)*(Data!E$2:E$68)) -> 278900 | E17: =SUMPRODUCT((Data!$B$2:$B$68=$A17)*(Data!$A$2:$A$68=$A$7)*(Data!F$2:F$68)) -> 298765 | F17: =SUMPRODUCT((Data!$B$2:$B$68=$A17)*(Data!$A$2:$A$68=$A$7)*(Data!G$2:G$68)) -> 312900 | G17: =SUMPRODUCT((Data!$B$2:$B$68=$A17)*(Data!$A$2:$A$68=$A$7)*(Data!H$2:H$68)) -> 320984 | H17: =SUMPRODUCT((Data!$B$2:$B$68=$A17)*(Data!$A$2:$A$68=$A$7)*(Data!I$2:I$68)) -> 301230 | I17: =SUMPRODUCT((Data!$B$2:$B$68=$A17)*(Data!$A$2:$A$68=$A$7)*(Data!J$2:J$68)) -> 298765 | J17: =SUMPRODUCT((Data!$B$2:$B$68=$A17)*(Data!$A$2:$A$68=$A$7)*(Data!K$2:K$68)) -> 326921.875
A18: Core Deposits | B18: =SUMPRODUCT((Data!$B$2:$B$68=$A18)*(Data!$A$2:$A$68=$A$7)*(Data!C$2:C$68)) -> 253651 | C18: =SUMPRODUCT((Data!$B$2:$B$68=$A18)*(Data!$A$2:$A$68=$A$7)*(Data!D$2:D$68)) -> 262890 | D18: =SUMPRODUCT((Data!$B$2:$B$68=$A18)*(Data!$A$2:$A$68=$A$7)*(Data!E$2:E$68)) -> 268931 | E18: =SUMPRODUCT((Data!$B$2:$B$68=$A18)*(Data!$A$2:$A$68=$A$7)*(Data!F$2:F$68)) -> 274900 | F18: =SUMPRODUCT((Data!$B$2:$B$68=$A18)*(Data!$A$2:$A$68=$A$7)*(Data!G$2:G$68)) -> 289150 | G18: =SUMPRODUCT((Data!$B$2:$B$68=$A18)*(Data!$A$2:$A$68=$A$7)*(Data!H$2:H$68)) -> 305918 | H18: =SUMPRODUCT((Data!$B$2:$B$68=$A18)*(Data!$A$2:$A$68=$A$7)*(Data!I$2:I$68)) -> 315918 | I18: =SUMPRODUCT((Data!$B$2:$B$68=$A18)*(Data!$A$2:$A$68=$A$7)*(Data!J$2:J$68)) -> 307123 | J18: =SUMPRODUCT((Data!$B$2:$B$68=$A18)*(Data!$A$2:$A$68=$A$7)*(Data!K$2:K$68)) -> 335918
A19: Stockholder's Equity | B19: =SUMPRODUCT((Data!$B$2:$B$68=$A19)*(Data!$A$2:$A$68=$A$7)*(Data!C$2:C$68)) -> 28750 | C19: =SUMPRODUCT((Data!$B$2:$B$68=$A19)*(Data!$A$2:$A$68=$A$7)*(Data!D$2:D$68)) -> 30800 | D19: =SUMPRODUCT((Data!$B$2:$B$68=$A19)*(Data!$A$2:$A$68=$A$7)*(Data!E$2:E$68)) -> 31540 | E19: =SUMPRODUCT((Data!$B$2:$B$68=$A19)*(Data!$A$2:$A$68=$A$7)*(Data!F$2:F$68)) -> 32700 | F19: =SUMPRODUCT((Data!$B$2:$B$68=$A19)*(Data!$A$2:$A$68=$A$7)*(Data!G$2:G$68)) -> 33870 | G19: =SUMPRODUCT((Data!$B$2:$B$68=$A19)*(Data!$A$2:$A$68=$A$7)*(Data!H$2:H$68)) -> 34900 | H19: =SUMPRODUCT((Data!$B$2:$B$68=$A19)*(Data!$A$2:$A$68=$A$7)*(Data!I$2:I$68)) -> 35900 | I19: =SUMPRODUCT((Data!$B$2:$B$68=$A19)*(Data!$A$2:$A$68=$A$7)*(Data!J$2:J$68)) -> 36900 | J19: =SUMPRODUCT((Data!$B$2:$B$68=$A19)*(Data!$A$2:$A$68=$A$7)*(Data!K$2:K$68)) -> 37900
A20: Non-Performing Loans / Total Loans | B20: =SUMPRODUCT((Data!$B$2:$B$68=$A20)*(Data!$A$2:$A$68=$A$7)*(Data!C$2:C$68)) -> 1.7 | C20: =SUMPRODUCT((Data!$B$2:$B$68=$A20)*(Data!$A$2:$A$68=$A$7)*(Data!D$2:D$68)) -> 1.5 | D20: =SUMPRODUCT((Data!$B$2:$B$68=$A20)*(Data!$A$2:$A$68=$A$7)*(Data!E$2:E$68)) -> 1.5 | E20: =SUMPRODUCT((Data!$B$2:$B$68=$A20)*(Data!$A$2:$A$68=$A$7)*(Data!F$2:F$68)) -> 1.4 | F20: =SUMPRODUCT((Data!$B$2:$B$68=$A20)*(Data!$A$2:$A$68=$A$7)*(Data!G$2:G$68)) -> 1.2 | G20: =SUMPRODUCT((Data!$B$2:$B$68=$A20)*(Data!$A$2:$A$68=$A$7)*(Data!H$2:H$68)) -> 1.3 | H20: =SUMPRODUCT((Data!$B$2:$B$68=$A20)*(Data!$A$2:$A$68=$A$7)*(Data!I$2:I$68)) -> 1.7 | I20: =SUMPRODUCT((Data!$B$2:$B$68=$A20)*(Data!$A$2:$A$68=$A$7)*(Data!J$2:J$68)) -> 1.5 | J20: =SUMPRODUCT((Data!$B$2:$B$68=$A20)*(Data!$A$2:$A$68=$A$7)*(Data!K$2:K$68)) -> 1.3
A21: Allowance / Total Loans | B21: =SUMPRODUCT((Data!$B$2:$B$68=$A21)*(Data!$A$2:$A$68=$A$7)*(Data!C$2:C$68)) -> 2.9 | C21: =SUMPRODUCT((Data!$B$2:$B$68=$A21)*(Data!$A$2:$A$68=$A$7)*(Data!D$2:D$68)) -> 2.9 | D21: =SUMPRODUCT((Data!$B$2:$B$68=$A21)*(Data!$A$2:$A$68=$A$7)*(Data!E$2:E$68)) -> 3 | E21: =SUMPRODUCT((Data!$B$2:$B$68=$A21)*(Data!$A$2:$A$68=$A$7)*(Data!F$2:F$68)) -> 3 | F21: =SUMPRODUCT((Data!$B$2:$B$68=$A21)*(Data!$A$2:$A$68=$A$7)*(Data!G$2:G$68)) -> 3.1 | G21: =SUMPRODUCT((Data!$B$2:$B$68=$A21)*(Data!$A$2:$A$68=$A$7)*(Data!H$2:H$68)) -> 3.2 | H21: =SUMPRODUCT((Data!$B$2:$B$68=$A21)*(Data!$A$2:$A$68=$A$7)*(Data!I$2:I$68)) -> 2.9 | I21: =SUMPRODUCT((Data!$B$2:$B$68=$A21)*(Data!$A$2:$A$68=$A$7)*(Data!J$2:J$68)) -> 2.9 | J21: =SUMPRODUCT((Data!$B$2:$B$68=$A21)*(Data!$A$2:$A$68=$A$7)*(Data!K$2:K$68)) -> 3
A22: Allowance / Non-Performing Loans | B22: =SUMPRODUCT((Data!$B$2:$B$68=$A22)*(Data!$A$2:$A$68=$A$7)*(Data!C$2:C$68)) -> 3.45 | C22: =SUMPRODUCT((Data!$B$2:$B$68=$A22)*(Data!$A$2:$A$68=$A$7)*(Data!D$2:D$68)) -> 3.6 | D22: =SUMPRODUCT((Data!$B$2:$B$68=$A22)*(Data!$A$2:$A$68=$A$7)*(Data!E$2:E$68)) -> 3.55 | E22: =SUMPRODUCT((Data!$B$2:$B$68=$A22)*(Data!$A$2:$A$68=$A$7)*(Data!F$2:F$68)) -> 3.65 | F22: =SUMPRODUCT((Data!$B$2:$B$68=$A22)*(Data!$A$2:$A$68=$A$7)*(Data!G$2:G$68)) -> 3.7 | G22: =SUMPRODUCT((Data!$B$2:$B$68=$A22)*(Data!$A$2:$A$68=$A$7)*(Data!H$2:H$68)) -> 3.9 | H22: =SUMPRODUCT((Data!$B$2:$B$68=$A22)*(Data!$A$2:$A$68=$A$7)*(Data!I$2:I$68)) -> 3.9 | I22: =SUMPRODUCT((Data!$B$2:$B$68=$A22)*(Data!$A$2:$A$68=$A$7)*(Data!J$2:J$68)) -> 3.6 | J22: =SUMPRODUCT((Data!$B$2:$B$68=$A22)*(Data!$A$2:$A$68=$A$7)*(Data!K$2:K$68)) -> 3.9
A23: Net Charge Offs / Average Total Loans | B23: =SUMPRODUCT((Data!$B$2:$B$68=$A23)*(Data!$A$2:$A$68=$A$7)*(Data!C$2:C$68)) -> 1.7 | C23: =SUMPRODUCT((Data!$B$2:$B$68=$A23)*(Data!$A$2:$A$68=$A$7)*(Data!D$2:D$68)) -> 1.4 | D23: =SUMPRODUCT((Data!$B$2:$B$68=$A23)*(Data!$A$2:$A$68=$A$7)*(Data!E$2:E$68)) -> 1.6 | E23: =SUMPRODUCT((Data!$B$2:$B$68=$A23)*(Data!$A$2:$A$68=$A$7)*(Data!F$2:F$68)) -> 1.6 | F23: =SUMPRODUCT((Data!$B$2:$B$68=$A23)*(Data!$A$2:$A$68=$A$7)*(Data!G$2:G$68)) -> 1.5 | G23: =SUMPRODUCT((Data!$B$2:$B$68=$A23)*(Data!$A$2:$A$68=$A$7)*(Data!H$2:H$68)) -> 1.4 | H23: =SUMPRODUCT((Data!$B$2:$B$68=$A23)*(Data!$A$2:$A$68=$A$7)*(Data!I$2:I$68)) -> 1.3 | I23: =SUMPRODUCT((Data!$B$2:$B$68=$A23)*(Data!$A$2:$A$68=$A$7)*(Data!J$2:J$68)) -> 1.6 | J23: =SUMPRODUCT((Data!$B$2:$B$68=$A23)*(Data!$A$2:$A$68=$A$7)*(Data!K$2:K$68)) -> 1.5
A26: Chart | B26: =B2 -> FY 12 | C26: FY 13 | D26: FY 14 | E26: FY 15 | F26: FY 16 | G26: FY 17
A27: Net Income | B27: =INDEX($A$8:$J$23,MATCH($A27,$A$8:$A$23,0),MATCH(B$26,$B$7:$J$7,0)+1) -> 7400 | C27: =INDEX($A$8:$J$23,MATCH($A27,$A$8:$A$23,0),MATCH(C$26,$B$7:$J$7,0)+1) -> 8100 | D27: =INDEX($A$8:$J$23,MATCH($A27,$A$8:$A$23,0),MATCH(D$26,$B$7:$J$7,0)+1) -> 8300 | E27: 9600 | F27: 10200 | G27: 10000
A28: Revenue | B28: =INDEX($A$8:$J$23,MATCH($A28,$A$8:$A$23,0),MATCH(B$26,$B$7:$J$7,0)+1) -> 28900 | C28: 33569 | D28: 34511 | E28: 35678 | F28: 38976 | G28: 40014
A29: Diluted Earnings Per Share | B29: 3.1 | C29: 3.2 | D29: 3.35 | E29: 3.4 | F29: 3.45 | G29: 3.6
A30: Dividends Per Share | B30: 0.97 | C30: 1.05 | D30: 1.11 | E30: 1.2 | F30: 1.23 | G30: 1.28
A31: Return on Assets | B31: 2.6 | C31: 2.4 | D31: 2.6 | E31: 2.5 | F31: 2.5 | G31: 2.6
A32: Return on Equity | B32: 23.4 | C32: 22.7 | D32: 26.8 | E32: 25.7 | F32: 27.6 | G32: 28.6
A33: Net Interest Margin | B33: 7.5 | C33: 7.8 | D33: 8.3 | E33: 8.3 | F33: 8.4 | G33: 8.7
A34: Efficiency Ratio | B34: 0.84 | C34: 0.9 | D34: 0.85 | E34: 0.87 | F34: 0.84 | G34: 0.88
A35: Assets | B35: 440000 | C35: 465000 | D35: 480000 | E35: 520000 | F35: 550000 | G35: 620000
A36: Loans | B36: 255923 | C36: 267900 | D36: 278900 | E36: 298765 | F36: 312900 | G36: 320984
A37: Core Deposits | B37: 253651 | C37: 262890 | D37: 268931 | E37: 274900 | F37: 289150 | G37: 305918
A38: Stockholder's Equity | B38: 28750 | C38: 30800 | D38: 31540 | E38: 32700 | F38: 33870 | G38: 34900
A39: Non-Performing Loans / Total Loans | B39: 1.7 | C39: 1.5 | D39: 1.5 | E39: 1.4 | F39: 1.2 | G39: 1.3
A40: Allowance / Total Loans | B40: 2.9 | C40: 2.9 | D40: 3 | E40: 3 | F40: 3.1 | G40: 3.2
A41: Allowance / Non-Performing Loans | B41: 3.45 | C41: 3.6 | D41: 3.55 | E41: 3.65 | F41: 3.7 | G41: 3.9
A42: Net Charge Offs / Average Total Loans | B42: 1.7 | C42: 1.4 | D42: 1.6 | E42: 1.6 | F42: 1.5 | G42: 1.4
A45: Hires and Terminations | B45: ="FY "&IF(RIGHT(C45,2)-1<10,"0"&RIGHT(C45,2)-1,RIGHT(C45,2)-1) -> FY 10 | C45: ="FY "&IF(RIGHT(D45,2)-1<10,"0"&RIGHT(D45,2)-1,RIGHT(D45,2)-1) -> FY 11 | D45: =B26 -> FY 12 | E45: FY 13 | F45: FY 14 | G45: FY 15 | H45: FY 16 | I45: FY 17
A46: New Hires | B46: =SUMPRODUCT((Hires!$A$2:$A$10=$A46)*(Hires!$B$2:$B$10=$A$7)*(Hires!$C$1:$M$1=B$45)*(Hires!$C$2:$M$10)) -> 599.76 | C46: =SUMPRODUCT((Hires!$A$2:$A$10=$A46)*(Hires!$B$2:$B$10=$A$7)*(Hires!$C$1:$M$1=C$45)*(Hires!$C$2:$M$10)) -> 264.48 | D46: =SUMPRODUCT((Hires!$A$2:$A$10=$A46)*(Hires!$B$2:$B$10=$A$7)*(Hires!$C$1:$M$1=D$45)*(Hires!$C$2:$M$10)) -> 408 | E46: =SUMPRODUCT((Hires!$A$2:$A$10=$A46)*(Hires!$B$2:$B$10=$A$7)*(Hires!$C$1:$M$1=E$45)*(Hires!$C$2:$M$10)) -> 514 | F46: =SUMPRODUCT((Hires!$A$2:$A$10=$A46)*(Hires!$B$2:$B$10=$A$7)*(Hires!$C$1:$M$1=F$45)*(Hires!$C$2:$M$10)) -> 612 | G46: =SUMPRODUCT((Hires!$A$2:$A$10=$A46)*(Hires!$B$2:$B$10=$A$7)*(Hires!$C$1:$M$1=G$45)*(Hires!$C$2:$M$10)) -> 232 | H46: =SUMPRODUCT((Hires!$A$2:$A$10=$A46)*(Hires!$B$2:$B$10=$A$7)*(Hires!$C$1:$M$1=H$45)*(Hires!$C$2:$M$10)) -> 387 | I46: =SUMPRODUCT((Hires!$A$2:$A$10=$A46)*(Hires!$B$2:$B$10=$A$7)*(Hires!$C$1:$M$1=I$45)*(Hires!$C$2:$M$10)) -> 418
A47: Termination | B47: =SUMPRODUCT((Hires!$A$2:$A$10=$A47)*(Hires!$B$2:$B$10=$A$7)*(Hires!$C$1:$M$1=B$45)*(Hires!$C$2:$M$10)) -> -416.16 | C47: =SUMPRODUCT((Hires!$A$2:$A$10=$A47)*(Hires!$B$2:$B$10=$A$7)*(Hires!$C$1:$M$1=C$45)*(Hires!$C$2:$M$10)) -> -234.78 | D47: =SUMPRODUCT((Hires!$A$2:$A$10=$A47)*(Hires!$B$2:$B$10=$A$7)*(Hires!$C$1:$M$1=D$45)*(Hires!$C$2:$M$10)) -> -612 | E47: =SUMPRODUCT((Hires!$A$2:$A$10=$A47)*(Hires!$B$2:$B$10=$A$7)*(Hires!$C$1:$M$1=E$45)*(Hires!$C$2:$M$10)) -> -511 | F47: =SUMPRODUCT((Hires!$A$2:$A$10=$A47)*(Hires!$B$2:$B$10=$A$7)*(Hires!$C$1:$M$1=F$45)*(Hires!$C$2:$M$10)) -> -408 | G47: =SUMPRODUCT((Hires!$A$2:$A$10=$A47)*(Hires!$B$2:$B$10=$A$7)*(Hires!$C$1:$M$1=G$45)*(Hires!$C$2:$M$10)) -> -301 | H47: =SUMPRODUCT((Hires!$A$2:$A$10=$A47)*(Hires!$B$2:$B$10=$A$7)*(Hires!$C$1:$M$1=H$45)*(Hires!$C$2:$M$10)) -> -354 | I47: =SUMPRODUCT((Hires!$A$2:$A$10=$A47)*(Hires!$B$2:$B$10=$A$7)*(Hires!$C$1:$M$1=I$45)*(Hires!$C$2:$M$10)) -> -102
A50: Other Metrics | B50: Current Mth
A51: Interest Income | B51: =SUMPRODUCT((Other!$A$2:$A$40=$A$7)*(Other!$B$2:$B$40=$A51)*(Other!$C$2:$C$40)) -> 166.6666667
A52: Funds Mgt Income | B52: =SUMPRODUCT((Other!$A$2:$A$40=$A$7)*(Other!$B$2:$B$40=$A52)*(Other!$C$2:$C$40)) -> 333.3333333
A53: Insurance Income | B53: =SUMPRODUCT((Other!$A$2:$A$40=$A$7)*(Other!$B$2:$B$40=$A53)*(Other!$C$2:$C$40)) -> 250
A54: Other Bank Income | B54: =SUMPRODUCT((Other!$A$2:$A$40=$A$7)*(Other!$B$2:$B$40=$A54)*(Other!$C$2:$C$40)) -> 83.33333333
A55: Net Income | B55: =SUMPRODUCT((Other!$A$2:$A$40=$A$7)*(Other!$B$2:$B$40=$A55)*(Other!$C$2:$C$40)) -> 833.3333333
A56: Operational Expenses | B56: =SUMPRODUCT((Other!$A$2:$A$40=$A$7)*(Other!$B$2:$B$40=$A56)*(Other!$C$2:$C$40)) -> 416.6666667
A57: Loan Imparement Expenses | B57: =SUMPRODUCT((Other!$A$2:$A$40=$A$7)*(Other!$B$2:$B$40=$A57)*(Other!$C$2:$C$40)) -> 104.1666667
A58: Net Expenses | B58: =SUMPRODUCT((Other!$A$2:$A$40=$A$7)*(Other!$B$2:$B$40=$A58)*(Other!$C$2:$C$40)) -> 520.8333333
A59: Net Profit | B59: =SUMPRODUCT((Other!$A$2:$A$40=$A$7)*(Other!$B$2:$B$40=$A59)*(Other!$C$2:$C$40)) -> 312.5
A62: FTEs | B62: Measure | C62: Current Mth
A63: Actual | B63: Prior Yr | C63: =SUMPRODUCT((FTE!$A$2:$A$24=$A$7)*(FTE!$D$2:$D$24=$A63)*(FTE!$C$2:$C$24=$B63)*(FTE!$E$2:$E$24)) -> 5217.795153
A64: Plan | B64: Prior Yr | C64: =SUMPRODUCT((FTE!$A$2:$A$24=$A$7)*(FTE!$D$2:$D$24=$A64)*(FTE!$C$2:$C$24=$B64)*(FTE!$E$2:$E$24)) -> 5098.33681
A65: Actual | B65: Cur Yr | C65: =SUMPRODUCT((FTE!$A$2:$A$24=$A$7)*(FTE!$D$2:$D$24=$A65)*(FTE!$C$2:$C$24=$B65)*(FTE!$E$2:$E$24)) -> 6942.323695
A66: Plan | B66: Cur Yr | C66: =SUMPRODUCT((FTE!$A$2:$A$24=$A$7)*(FTE!$D$2:$D$24=$A66)*(FTE!$C$2:$C$24=$B66)*(FTE!$E$2:$E$24)) -> 6973.198185
A67: Forecast | B67: Cur Yr | C67: =SUMPRODUCT((FTE!$A$2:$A$24=$A$7)*(FTE!$D$2:$D$24=$A67)*(FTE!$C$2:$C$24=$B67)*(FTE!$E$2:$E$24)) -> 6673.198185
A70: % of Revenue | B70: %
A71: Home Loans | B71: =SUMPRODUCT((General!$A$2:$A$40=$A$7)*(General!$B$2:$B$40=$A71)*(General!$C$2:$C$40)) -> 0.12
A72: Credit Cards | B72: =SUMPRODUCT((General!$A$2:$A$40=$A$7)*(General!$B$2:$B$40=$A72)*(General!$C$2:$C$40)) -> 0.25
A73: Houshold Lending | B73: =SUMPRODUCT((General!$A$2:$A$40=$A$7)*(General!$B$2:$B$40=$A73)*(General!$C$2:$C$40)) -> 0.04
A74: Other Bank Income | B74: =SUMPRODUCT((General!$A$2:$A$40=$A$7)*(General!$B$2:$B$40=$A74)*(General!$C$2:$C$40)) -> 0.02
A75: Retail Deposits | B75: =SUMPRODUCT((General!$A$2:$A$40=$A$7)*(General!$B$2:$B$40=$A75)*(General!$C$2:$C$40)) -> 0.06
A76: Business Lending | B76: =SUMPRODUCT((General!$A$2:$A$40=$A$7)*(General!$B$2:$B$40=$A76)*(General!$C$2:$C$40)) -> 0.18
A77: Asset Finance | B77: =SUMPRODUCT((General!$A$2:$A$40=$A$7)*(General!$B$2:$B$40=$A77)*(General!$C$2:$C$40)) -> 0.2
A78: Equities Trading | B78: =SUMPRODUCT((General!$A$2:$A$40=$A$7)*(General!$B$2:$B$40=$A78)*(General!$C$2:$C$40)) -> 0.1
A79: FX Trading | B79: =SUMPRODUCT((General!$A$2:$A$40=$A$7)*(General!$B$2:$B$40=$A79)*(General!$C$2:$C$40)) -> 0.03
A82: Satisfaction | B82: States | C82: PY | D82: PY Gap | E82: CY | F82: CY Gap
A83: Customer | B83: =A7 -> England | C83: =SUMIFS(Cust!C$2:C$5,Cust!$B$2:$B$5,$A$7) -> 0.87 | D83: =1-C83 -> 0.13 | E83: =SUMIFS(Cust!D$2:D$5,Cust!$B$2:$B$5,$A$7) -> 0.83 | F83: =1-E83 -> 0.17
A86: Avg Sick Days | B86: Country | C86: Jul | D86: Aug | E86: Sep | F86: Oct | G86: Nov | H86: Dec | I86: Jan | J86: Feb | K86: Mar | L86: Apr | M86: May | N86: Jun
A87: CY | B87: =$A$7 -> England | C87: =SUMIFS(Sick!C$2:C$10,Sick!$A$2:$A$10,$A87,Sick!$B$2:$B$10,$B87) -> 7.7616 | D87: =SUMIFS(Sick!D$2:D$10,Sick!$A$2:$A$10,$A87,Sick!$B$2:$B$10,$B87) -> 9.7944 | E87: =SUMIFS(Sick!E$2:E$10,Sick!$A$2:$A$10,$A87,Sick!$B$2:$B$10,$B87) -> 7.4844 | F87: =SUMIFS(Sick!F$2:F$10,Sick!$A$2:$A$10,$A87,Sick!$B$2:$B$10,$B87) -> 10.3488 | G87: =SUMIFS(Sick!G$2:G$10,Sick!$A$2:$A$10,$A87,Sick!$B$2:$B$10,$B87) -> 9.3324 | H87: =SUMIFS(Sick!H$2:H$10,Sick!$A$2:$A$10,$A87,Sick!$B$2:$B$10,$B87) -> 9.9792 | I87: =SUMIFS(Sick!I$2:I$10,Sick!$A$2:$A$10,$A87,Sick!$B$2:$B$10,$B87) -> 8.5008 | J87: =SUMIFS(Sick!J$2:J$10,Sick!$A$2:$A$10,$A87,Sick!$B$2:$B$10,$B87) -> 10.3488 | K87: =SUMIFS(Sick!K$2:K$10,Sick!$A$2:$A$10,$A87,Sick!$B$2:$B$10,$B87) -> 8.6856 | L87: =SUMIFS(Sick!L$2:L$10,Sick!$A$2:$A$10,$A87,Sick!$B$2:$B$10,$B87) -> 7.9464 | M87: =SUMIFS(Sick!M$2:M$10,Sick!$A$2:$A$10,$A87,Sick!$B$2:$B$10,$B87) -> 8.4084 | N87: =SUMIFS(Sick!N$2:N$10,Sick!$A$2:$A$10,$A87,Sick!$B$2:$B$10,$B87) -> 8.778
A88: PY | B88: =$A$7 -> England | C88: =SUMIFS(Sick!C$2:C$10,Sick!$A$2:$A$10,$A88,Sick!$B$2:$B$10,$B88) -> 6.56208 | D88: =SUMIFS(Sick!D$2:D$10,Sick!$A$2:$A$10,$A88,Sick!$B$2:$B$10,$B88) -> 8.28072 | E88: =SUMIFS(Sick!E$2:E$10,Sick!$A$2:$A$10,$A88,Sick!$B$2:$B$10,$B88) -> 6.25968 | F88: =SUMIFS(Sick!F$2:F$10,Sick!$A$2:$A$10,$A88,Sick!$B$2:$B$10,$B88) -> 8.4672 | G88: =SUMIFS(Sick!G$2:G$10,Sick!$A$2:$A$10,$A88,Sick!$B$2:$B$10,$B88) -> 7.29624 | H88: =SUMIFS(Sick!H$2:H$10,Sick!$A$2:$A$10,$A88,Sick!$B$2:$B$10,$B88) -> 7.34832 | I88: =SUMIFS(Sick!I$2:I$10,Sick!$A$2:$A$10,$A88,Sick!$B$2:$B$10,$B88) -> 6.25968 | J88: =SUMIFS(Sick!J$2:J$10,Sick!$A$2:$A$10,$A88,Sick!$B$2:$B$10,$B88) -> 7.5264 | K88: =SUMIFS(Sick!K$2:K$10,Sick!$A$2:$A$10,$A88,Sick!$B$2:$B$10,$B88) -> 6.63264 | L88: =SUMIFS(Sick!L$2:L$10,Sick!$A$2:$A$10,$A88,Sick!$B$2:$B$10,$B88) -> 5.92368 | M88: =SUMIFS(Sick!M$2:M$10,Sick!$A$2:$A$10,$A88,Sick!$B$2:$B$10,$B88) -> 6.65028 | N88: =SUMIFS(Sick!N$2:N$10,Sick!$A$2:$A$10,$A88,Sick!$B$2:$B$10,$B88) -> 7.581

Sheet Check
B2: =Calcs!$A$7 -> England | C2: =Calcs!B7 -> FY 12 | D2: =Calcs!C7 -> FY 13 | E2: =Calcs!D7 -> FY 14 | F2: =Calcs!E7 -> FY 15 | G2: =Calcs!F7 -> FY 16 | H2: =Calcs!G7 -> FY 17 | I2: =Calcs!H7 -> FY 18 | J2: =Calcs!I7 -> FY 19 | K2: =Calcs!J7 -> FY 20 | M2: Check
B3: Net Income | C3: =SUMIFS(Data!C$2:C$69,Data!$B$2:$B$69,$B3,Data!$A$2:$A$69,$B$2) -> 7400 | D3: =SUMIFS(Data!D$2:D$69,Data!$B$2:$B$69,$B3,Data!$A$2:$A$69,$B$2) -> 8100 | E3: =SUMIFS(Data!E$2:E$69,Data!$B$2:$B$69,$B3,Data!$A$2:$A$69,$B$2) -> 8300 | F3: =SUMIFS(Data!F$2:F$69,Data!$B$2:$B$69,$B3,Data!$A$2:$A$69,$B$2) -> 9600 | G3: =SUMIFS(Data!G$2:G$69,Data!$B$2:$B$69,$B3,Data!$A$2:$A$69,$B$2) -> 10200 | H3: =SUMIFS(Data!H$2:H$69,Data!$B$2:$B$69,$B3,Data!$A$2:$A$69,$B$2) -> 10000 | I3: =SUMIFS(Data!I$2:I$69,Data!$B$2:$B$69,$B3,Data!$A$2:$A$69,$B$2) -> 10200 | J3: =SUMIFS(Data!J$2:J$69,Data!$B$2:$B$69,$B3,Data!$A$2:$A$69,$B$2) -> 10600 | K3: =SUMIFS(Data!K$2:K$69,Data!$B$2:$B$69,$B3,Data!$A$2:$A$69,$B$2) -> 10300
B4: Revenue | C4: =SUMIFS(Data!C$2:C$69,Data!$B$2:$B$69,$B4,Data!$A$2:$A$69,$B$2) -> 28900 | D4: =SUMIFS(Data!D$2:D$69,Data!$B$2:$B$69,$B4,Data!$A$2:$A$69,$B$2) -> 33569 | E4: =SUMIFS(Data!E$2:E$69,Data!$B$2:$B$69,$B4,Data!$A$2:$A$69,$B$2) -> 34511 | F4: =SUMIFS(Data!F$2:F$69,Data!$B$2:$B$69,$B4,Data!$A$2:$A$69,$B$2) -> 35678 | G4: =SUMIFS(Data!G$2:G$69,Data!$B$2:$B$69,$B4,Data!$A$2:$A$69,$B$2) -> 38976 | H4: =SUMIFS(Data!H$2:H$69,Data!$B$2:$B$69,$B4,Data!$A$2:$A$69,$B$2) -> 40014 | I4: =SUMIFS(Data!I$2:I$69,Data!$B$2:$B$69,$B4,Data!$A$2:$A$69,$B$2) -> 41017.5 | J4: =SUMIFS(Data!J$2:J$69,Data!$B$2:$B$69,$B4,Data!$A$2:$A$69,$B$2) -> 42521.875 | K4: =SUMIFS(Data!K$2:K$69,Data!$B$2:$B$69,$B4,Data!$A$2:$A$69,$B$2) -> 48152.34375
B5: Diluted Earnings Per Share | C5: =SUMIFS(Data!C$2:C$69,Data!$B$2:$B$69,$B5,Data!$A$2:$A$69,$B$2) -> 3.1 | D5: =SUMIFS(Data!D$2:D$69,Data!$B$2:$B$69,$B5,Data!$A$2:$A$69,$B$2) -> 3.2 | E5: =SUMIFS(Data!E$2:E$69,Data!$B$2:$B$69,$B5,Data!$A$2:$A$69,$B$2) -> 3.35 | F5: =SUMIFS(Data!F$2:F$69,Data!$B$2:$B$69,$B5,Data!$A$2:$A$69,$B$2) -> 3.4 | G5: =SUMIFS(Data!G$2:G$69,Data!$B$2:$B$69,$B5,Data!$A$2:$A$69,$B$2) -> 3.45 | H5: =SUMIFS(Data!H$2:H$69,Data!$B$2:$B$69,$B5,Data!$A$2:$A$69,$B$2) -> 3.6 | I5: =SUMIFS(Data!I$2:I$69,Data!$B$2:$B$69,$B5,Data!$A$2:$A$69,$B$2) -> 4.5 | J5: =SUMIFS(Data!J$2:J$69,Data!$B$2:$B$69,$B5,Data!$A$2:$A$69,$B$2) -> 5.625 | K5: =SUMIFS(Data!K$2:K$69,Data!$B$2:$B$69,$B5,Data!$A$2:$A$69,$B$2) -> 7.03125
B6: Dividends Per Share | C6: =SUMIFS(Data!C$2:C$69,Data!$B$2:$B$69,$B6,Data!$A$2:$A$69,$B$2) -> 0.97 | D6: =SUMIFS(Data!D$2:D$69,Data!$B$2:$B$69,$B6,Data!$A$2:$A$69,$B$2) -> 1.05 | E6: =SUMIFS(Data!E$2:E$69,Data!$B$2:$B$69,$B6,Data!$A$2:$A$69,$B$2) -> 1.11 | F6: =SUMIFS(Data!F$2:F$69,Data!$B$2:$B$69,$B6,Data!$A$2:$A$69,$B$2) -> 1.2 | G6: =SUMIFS(Data!G$2:G$69,Data!$B$2:$B$69,$B6,Data!$A$2:$A$69,$B$2) -> 1.23 | H6: =SUMIFS(Data!H$2:H$69,Data!$B$2:$B$69,$B6,Data!$A$2:$A$69,$B$2) -> 1.28 | I6: =SUMIFS(Data!I$2:I$69,Data!$B$2:$B$69,$B6,Data!$A$2:$A$69,$B$2) -> 1.6 | J6: =SUMIFS(Data!J$2:J$69,Data!$B$2:$B$69,$B6,Data!$A$2:$A$69,$B$2) -> 2 | K6: =SUMIFS(Data!K$2:K$69,Data!$B$2:$B$69,$B6,Data!$A$2:$A$69,$B$2) -> 2.5
B7: Return on Assets | C7: =SUMIFS(Data!C$2:C$69,Data!$B$2:$B$69,$B7,Data!$A$2:$A$69,$B$2) -> 2.6 | D7: =SUMIFS(Data!D$2:D$69,Data!$B$2:$B$69,$B7,Data!$A$2:$A$69,$B$2) -> 2.4 | E7: =SUMIFS(Data!E$2:E$69,Data!$B$2:$B$69,$B7,Data!$A$2:$A$69,$B$2) -> 2.6 | F7: =SUMIFS(Data!F$2:F$69,Data!$B$2:$B$69,$B7,Data!$A$2:$A$69,$B$2) -> 2.5 | G7: =SUMIFS(Data!G$2:G$69,Data!$B$2:$B$69,$B7,Data!$A$2:$A$69,$B$2) -> 2.5 | H7: =SUMIFS(Data!H$2:H$69,Data!$B$2:$B$69,$B7,Data!$A$2:$A$69,$B$2) -> 2.6 | I7: =SUMIFS(Data!I$2:I$69,Data!$B$2:$B$69,$B7,Data!$A$2:$A$69,$B$2) -> 3.25 | J7: =SUMIFS(Data!J$2:J$69,Data!$B$2:$B$69,$B7,Data!$A$2:$A$69,$B$2) -> 4.0625 | K7: =SUMIFS(Data!K$2:K$69,Data!$B$2:$B$69,$B7,Data!$A$2:$A$69,$B$2) -> 5.078125
B8: Return on Equity | C8: =SUMIFS(Data!C$2:C$69,Data!$B$2:$B$69,$B8,Data!$A$2:$A$69,$B$2) -> 23.4 | D8: =SUMIFS(Data!D$2:D$69,Data!$B$2:$B$69,$B8,Data!$A$2:$A$69,$B$2) -> 22.7 | E8: =SUMIFS(Data!E$2:E$69,Data!$B$2:$B$69,$B8,Data!$A$2:$A$69,$B$2) -> 26.8 | F8: =SUMIFS(Data!F$2:F$69,Data!$B$2:$B$69,$B8,Data!$A$2:$A$69,$B$2) -> 25.7 | G8: =SUMIFS(Data!G$2:G$69,Data!$B$2:$B$69,$B8,Data!$A$2:$A$69,$B$2) -> 27.6 | H8: =SUMIFS(Data!H$2:H$69,Data!$B$2:$B$69,$B8,Data!$A$2:$A$69,$B$2) -> 28.6 | I8: =SUMIFS(Data!I$2:I$69,Data!$B$2:$B$69,$B8,Data!$A$2:$A$69,$B$2) -> 30.75 | J8: =SUMIFS(Data!J$2:J$69,Data!$B$2:$B$69,$B8,Data!$A$2:$A$69,$B$2) -> 25.6875 | K8: =SUMIFS(Data!K$2:K$69,Data!$B$2:$B$69,$B8,Data!$A$2:$A$69,$B$2) -> 22.859375
B9: Net Interest Margin | C9: =SUMIFS(Data!C$2:C$69,Data!$B$2:$B$69,$B9,Data!$A$2:$A$69,$B$2) -> 7.5 | D9: =SUMIFS(Data!D$2:D$69,Data!$B$2:$B$69,$B9,Data!$A$2:$A$69,$B$2) -> 7.8 | E9: =SUMIFS(Data!E$2:E$69,Data!$B$2:$B$69,$B9,Data!$A$2:$A$69,$B$2) -> 8.3 | F9: =SUMIFS(Data!F$2:F$69,Data!$B$2:$B$69,$B9,Data!$A$2:$A$69,$B$2) -> 8.3 | G9: =SUMIFS(Data!G$2:G$69,Data!$B$2:$B$69,$B9,Data!$A$2:$A$69,$B$2) -> 8.4 | H9: =SUMIFS(Data!H$2:H$69,Data!$B$2:$B$69,$B9,Data!$A$2:$A$69,$B$2) -> 8.7 | I9: =SUMIFS(Data!I$2:I$69,Data!$B$2:$B$69,$B9,Data!$A$2:$A$69,$B$2) -> 8.875 | J9: =SUMIFS(Data!J$2:J$69,Data!$B$2:$B$69,$B9,Data!$A$2:$A$69,$B$2) -> 9 | K9: =SUMIFS(Data!K$2:K$69,Data!$B$2:$B$69,$B9,Data!$A$2:$A$69,$B$2) -> 8.7
B10: Efficiency Ratio | C10: =SUMIFS(Data!C$2:C$69,Data!$B$2:$B$69,$B10,Data!$A$2:$A$69,$B$2) -> 0.84 | D10: =SUMIFS(Data!D$2:D$69,Data!$B$2:$B$69,$B10,Data!$A$2:$A$69,$B$2) -> 0.9 | E10: =SUMIFS(Data!E$2:E$69,Data!$B$2:$B$69,$B10,Data!$A$2:$A$69,$B$2) -> 0.85 | F10: =SUMIFS(Data!F$2:F$69,Data!$B$2:$B$69,$B10,Data!$A$2:$A$69,$B$2) -> 0.87 | G10: =SUMIFS(Data!G$2:G$69,Data!$B$2:$B$69,$B10,Data!$A$2:$A$69,$B$2) -> 0.84 | H10: =SUMIFS(Data!H$2:H$69,Data!$B$2:$B$69,$B10,Data!$A$2:$A$69,$B$2) -> 0.88 | I10: =SUMIFS(Data!I$2:I$69,Data!$B$2:$B$69,$B10,Data!$A$2:$A$69,$B$2) -> 1.1 | J10: =SUMIFS(Data!J$2:J$69,Data!$B$2:$B$69,$B10,Data!$A$2:$A$69,$B$2) -> 1.375 | K10: =SUMIFS(Data!K$2:K$69,Data!$B$2:$B$69,$B10,Data!$A$2:$A$69,$B$2) -> 1.71875
B11: Assets | C11: =SUMIFS(Data!C$2:C$69,Data!$B$2:$B$69,$B11,Data!$A$2:$A$69,$B$2) -> 440000 | D11: =SUMIFS(Data!D$2:D$69,Data!$B$2:$B$69,$B11,Data!$A$2:$A$69,$B$2) -> 465000 | E11: =SUMIFS(Data!E$2:E$69,Data!$B$2:$B$69,$B11,Data!$A$2:$A$69,$B$2) -> 480000 | F11: =SUMIFS(Data!F$2:F$69,Data!$B$2:$B$69,$B11,Data!$A$2:$A$69,$B$2) -> 520000 | G11: =SUMIFS(Data!G$2:G$69,Data!$B$2:$B$69,$B11,Data!$A$2:$A$69,$B$2) -> 550000 | H11: =SUMIFS(Data!H$2:H$69,Data!$B$2:$B$69,$B11,Data!$A$2:$A$69,$B$2) -> 620000 | I11: =SUMIFS(Data!I$2:I$69,Data!$B$2:$B$69,$B11,Data!$A$2:$A$69,$B$2) -> 675000 | J11: =SUMIFS(Data!J$2:J$69,Data!$B$2:$B$69,$B11,Data!$A$2:$A$69,$B$2) -> 698750 | K11: =SUMIFS(Data!K$2:K$69,Data!$B$2:$B$69,$B11,Data!$A$2:$A$69,$B$2) -> 668750
B12: Loans | C12: =SUMIFS(Data!C$2:C$69,Data!$B$2:$B$69,$B12,Data!$A$2:$A$69,$B$2) -> 255923 | D12: =SUMIFS(Data!D$2:D$69,Data!$B$2:$B$69,$B12,Data!$A$2:$A$69,$B$2) -> 267900 | E12: =SUMIFS(Data!E$2:E$69,Data!$B$2:$B$69,$B12,Data!$A$2:$A$69,$B$2) -> 278900 | F12: =SUMIFS(Data!F$2:F$69,Data!$B$2:$B$69,$B12,Data!$A$2:$A$69,$B$2) -> 298765 | G12: =SUMIFS(Data!G$2:G$69,Data!$B$2:$B$69,$B12,Data!$A$2:$A$69,$B$2) -> 312900 | H12: =SUMIFS(Data!H$2:H$69,Data!$B$2:$B$69,$B12,Data!$A$2:$A$69,$B$2) -> 320984 | I12: =SUMIFS(Data!I$2:I$69,Data!$B$2:$B$69,$B12,Data!$A$2:$A$69,$B$2) -> 301230 | J12: =SUMIFS(Data!J$2:J$69,Data!$B$2:$B$69,$B12,Data!$A$2:$A$69,$B$2) -> 298765 | K12: =SUMIFS(Data!K$2:K$69,Data!$B$2:$B$69,$B12,Data!$A$2:$A$69,$B$2) -> 326921.875
B13: Core Deposits | C13: =SUMIFS(Data!C$2:C$69,Data!$B$2:$B$69,$B13,Data!$A$2:$A$69,$B$2) -> 253651 | D13: =SUMIFS(Data!D$2:D$69,Data!$B$2:$B$69,$B13,Data!$A$2:$A$69,$B$2) -> 262890 | E13: =SUMIFS(Data!E$2:E$69,Data!$B$2:$B$69,$B13,Data!$A$2:$A$69,$B$2) -> 268931 | F13: =SUMIFS(Data!F$2:F$69,Data!$B$2:$B$69,$B13,Data!$A$2:$A$69,$B$2) -> 274900 | G13: =SUMIFS(Data!G$2:G$69,Data!$B$2:$B$69,$B13,Data!$A$2:$A$69,$B$2) -> 289150 | H13: =SUMIFS(Data!H$2:H$69,Data!$B$2:$B$69,$B13,Data!$A$2:$A$69,$B$2) -> 305918 | I13: =SUMIFS(Data!I$2:I$69,Data!$B$2:$B$69,$B13,Data!$A$2:$A$69,$B$2) -> 315918 | J13: =SUMIFS(Data!J$2:J$69,Data!$B$2:$B$69,$B13,Data!$A$2:$A$69,$B$2) -> 307123 | K13: =SUMIFS(Data!K$2:K$69,Data!$B$2:$B$69,$B13,Data!$A$2:$A$69,$B$2) -> 335918
B14: Stockholder's Equity | C14: =SUMIFS(Data!C$2:C$69,Data!$B$2:$B$69,$B14,Data!$A$2:$A$69,$B$2) -> 28750 | D14: =SUMIFS(Data!D$2:D$69,Data!$B$2:$B$69,$B14,Data!$A$2:$A$69,$B$2) -> 30800 | E14: =SUMIFS(Data!E$2:E$69,Data!$B$2:$B$69,$B14,Data!$A$2:$A$69,$B$2) -> 31540 | F14: =SUMIFS(Data!F$2:F$69,Data!$B$2:$B$69,$B14,Data!$A$2:$A$69,$B$2) -> 32700 | G14: =SUMIFS(Data!G$2:G$69,Data!$B$2:$B$69,$B14,Data!$A$2:$A$69,$B$2) -> 33870 | H14: =SUMIFS(Data!H$2:H$69,Data!$B$2:$B$69,$B14,Data!$A$2:$A$69,$B$2) -> 34900 | I14: =SUMIFS(Data!I$2:I$69,Data!$B$2:$B$69,$B14,Data!$A$2:$A$69,$B$2) -> 35900 | J14: =SUMIFS(Data!J$2:J$69,Data!$B$2:$B$69,$B14,Data!$A$2:$A$69,$B$2) -> 36900 | K14: =SUMIFS(Data!K$2:K$69,Data!$B$2:$B$69,$B14,Data!$A$2:$A$69,$B$2) -> 37900
B15: Non-Performing Loans / Total Loans | C15: =SUMIFS(Data!C$2:C$69,Data!$B$2:$B$69,$B15,Data!$A$2:$A$69,$B$2) -> 1.7 | D15: =SUMIFS(Data!D$2:D$69,Data!$B$2:$B$69,$B15,Data!$A$2:$A$69,$B$2) -> 1.5 | E15: =SUMIFS(Data!E$2:E$69,Data!$B$2:$B$69,$B15,Data!$A$2:$A$69,$B$2) -> 1.5 | F15: =SUMIFS(Data!F$2:F$69,Data!$B$2:$B$69,$B15,Data!$A$2:$A$69,$B$2) -> 1.4 | G15: =SUMIFS(Data!G$2:G$69,Data!$B$2:$B$69,$B15,Data!$A$2:$A$69,$B$2) -> 1.2 | H15: =SUMIFS(Data!H$2:H$69,Data!$B$2:$B$69,$B15,Data!$A$2:$A$69,$B$2) -> 1.3 | I15: =SUMIFS(Data!I$2:I$69,Data!$B$2:$B$69,$B15,Data!$A$2:$A$69,$B$2) -> 1.7 | J15: =SUMIFS(Data!J$2:J$69,Data!$B$2:$B$69,$B15,Data!$A$2:$A$69,$B$2) -> 1.5 | K15: =SUMIFS(Data!K$2:K$69,Data!$B$2:$B$69,$B15,Data!$A$2:$A$69,$B$2) -> 1.3
B16: Allowance / Total Loans | C16: =SUMIFS(Data!C$2:C$69,Data!$B$2:$B$69,$B16,Data!$A$2:$A$69,$B$2) -> 2.9 | D16: =SUMIFS(Data!D$2:D$69,Data!$B$2:$B$69,$B16,Data!$A$2:$A$69,$B$2) -> 2.9 | E16: =SUMIFS(Data!E$2:E$69,Data!$B$2:$B$69,$B16,Data!$A$2:$A$69,$B$2) -> 3 | F16: =SUMIFS(Data!F$2:F$69,Data!$B$2:$B$69,$B16,Data!$A$2:$A$69,$B$2) -> 3 | G16: =SUMIFS(Data!G$2:G$69,Data!$B$2:$B$69,$B16,Data!$A$2:$A$69,$B$2) -> 3.1 | H16: =SUMIFS(Data!H$2:H$69,Data!$B$2:$B$69,$B16,Data!$A$2:$A$69,$B$2) -> 3.2 | I16: =SUMIFS(Data!I$2:I$69,Data!$B$2:$B$69,$B16,Data!$A$2:$A$69,$B$2) -> 2.9 | J16: =SUMIFS(Data!J$2:J$69,Data!$B$2:$B$69,$B16,Data!$A$2:$A$69,$B$2) -> 2.9 | K16: =SUMIFS(Data!K$2:K$69,Data!$B$2:$B$69,$B16,Data!$A$2:$A$69,$B$2) -> 3
B17: Allowance / Non-Performing Loans | C17: =SUMIFS(Data!C$2:C$69,Data!$B$2:$B$69,$B17,Data!$A$2:$A$69,$B$2) -> 3.45 | D17: =SUMIFS(Data!D$2:D$69,Data!$B$2:$B$69,$B17,Data!$A$2:$A$69,$B$2) -> 3.6 | E17: =SUMIFS(Data!E$2:E$69,Data!$B$2:$B$69,$B17,Data!$A$2:$A$69,$B$2) -> 3.55 | F17: =SUMIFS(Data!F$2:F$69,Data!$B$2:$B$69,$B17,Data!$A$2:$A$69,$B$2) -> 3.65 | G17: =SUMIFS(Data!G$2:G$69,Data!$B$2:$B$69,$B17,Data!$A$2:$A$69,$B$2) -> 3.7 | H17: =SUMIFS(Data!H$2:H$69,Data!$B$2:$B$69,$B17,Data!$A$2:$A$69,$B$2) -> 3.9 | I17: =SUMIFS(Data!I$2:I$69,Data!$B$2:$B$69,$B17,Data!$A$2:$A$69,$B$2) -> 3.9 | J17: =SUMIFS(Data!J$2:J$69,Data!$B$2:$B$69,$B17,Data!$A$2:$A$69,$B$2) -> 3.6 | K17: =SUMIFS(Data!K$2:K$69,Data!$B$2:$B$69,$B17,Data!$A$2:$A$69,$B$2) -> 3.9
B18: Net Charge Offs / Average Total Loans | C18: =SUMIFS(Data!C$2:C$69,Data!$B$2:$B$69,$B18,Data!$A$2:$A$69,$B$2) -> 1.7 | D18: =SUMIFS(Data!D$2:D$69,Data!$B$2:$B$69,$B18,Data!$A$2:$A$69,$B$2) -> 1.4 | E18: =SUMIFS(Data!E$2:E$69,Data!$B$2:$B$69,$B18,Data!$A$2:$A$69,$B$2) -> 1.6 | F18: =SUMIFS(Data!F$2:F$69,Data!$B$2:$B$69,$B18,Data!$A$2:$A$69,$B$2) -> 1.6 | G18: =SUMIFS(Data!G$2:G$69,Data!$B$2:$B$69,$B18,Data!$A$2:$A$69,$B$2) -> 1.5 | H18: =SUMIFS(Data!H$2:H$69,Data!$B$2:$B$69,$B18,Data!$A$2:$A$69,$B$2) -> 1.4 | I18: =SUMIFS(Data!I$2:I$69,Data!$B$2:$B$69,$B18,Data!$A$2:$A$69,$B$2) -> 1.3 | J18: =SUMIFS(Data!J$2:J$69,Data!$B$2:$B$69,$B18,Data!$A$2:$A$69,$B$2) -> 1.6 | K18: =SUMIFS(Data!K$2:K$69,Data!$B$2:$B$69,$B18,Data!$A$2:$A$69,$B$2) -> 1.5
B20: Check | C20: =SUM(C3:C19) -> 1014672.16 | D20: =SUM(D3:D19) -> 1068306.45 | E20: 1102234.66 | F20: 1171694.62 | G20: 1235149.52 | H20: 1331871.46 | I20: 1379325.375 | J20: 1394717.225 | K20: 1427999.806
B22: Total Check | C22: =C20-SUM(Calcs!B8:B24) -> 0 | D22: =D20-SUM(Calcs!C8:C24) -> 0 | E22: =E20-SUM(Calcs!D8:D24) -> 0 | F22: =F20-SUM(Calcs!E8:E24) -> 0 | G22: =G20-SUM(Calcs!F8:F24) -> 0 | H22: =H20-SUM(Calcs!G8:G24) -> 0 | I22: =I20-SUM(Calcs!H8:H24) -> 0 | J22: =J20-SUM(Calcs!I8:I24) -> 0 | K22: =K20-SUM(Calcs!J8:J24) -> 0 | M22: =SUM(C22:L22) -> 0
B25: Metric | C25: CM Data | D25: Check | M25: Check
B26: Interest Income | C26: =SUMIFS(Other!$C$2:$C$41,Other!$A$2:$A$41,$B$2,Other!$B$2:$B$41,$B26) -> 166.6666667 | D26: =C26-Calcs!B51 -> 0
B27: Funds Mgt Income | C27: =SUMIFS(Other!$C$2:$C$41,Other!$A$2:$A$41,$B$2,Other!$B$2:$B$41,$B27) -> 333.3333333 | D27: =C27-Calcs!B52 -> 0
B28: Insurance Income | C28: =SUMIFS(Other!$C$2:$C$41,Other!$A$2:$A$41,$B$2,Other!$B$2:$B$41,$B28) -> 250 | D28: =C28-Calcs!B53 -> 0
B29: Other Bank Income | C29: =SUMIFS(Other!$C$2:$C$41,Other!$A$2:$A$41,$B$2,Other!$B$2:$B$41,$B29) -> 83.33333333 | D29: =C29-Calcs!B54 -> 0
B30: Net Income | C30: =SUMIFS(Other!$C$2:$C$41,Other!$A$2:$A$41,$B$2,Other!$B$2:$B$41,$B30) -> 833.3333333 | D30: =C30-Calcs!B55 -> 0
B31: Operational Expenses | C31: =SUMIFS(Other!$C$2:$C$41,Other!$A$2:$A$41,$B$2,Other!$B$2:$B$41,$B31) -> 416.6666667 | D31: =C31-Calcs!B56 -> 0
B32: Loan Imparement Expenses | C32: =SUMIFS(Other!$C$2:$C$41,Other!$A$2:$A$41,$B$2,Other!$B$2:$B$41,$B32) -> 104.1666667 | D32: =C32-Calcs!B57 -> 0
B33: Net Expenses | C33: =SUMIFS(Other!$C$2:$C$41,Other!$A$2:$A$41,$B$2,Other!$B$2:$B$41,$B33) -> 520.8333333 | D33: =C33-Calcs!B58 -> 0
B34: Net Profit | C34: =SUMIFS(Other!$C$2:$C$41,Other!$A$2:$A$41,$B$2,Other!$B$2:$B$41,$B34) -> 312.5 | D34: =C34-Calcs!B59 -> 0
B36: Check | D36: =SUM(D26:D35) -> 0 | M36: =SUM(C36:L36) -> 0
B38: Hires and Terminations | C38: =Calcs!B45 -> FY 10 | D38: =Calcs!C45 -> FY 11 | E38: =Calcs!D45 -> FY 12 | F38: =Calcs!E45 -> FY 13 | G38: =Calcs!F45 -> FY 14 | H38: =Calcs!G45 -> FY 15 | I38: =Calcs!H45 -> FY 16 | J38: =Calcs!I45 -> FY 17 | M38: Check
B39: New Hires | C39: =SUMPRODUCT((Hires!$A$2:$A$10=$B39)*(Hires!$B$2:$B$10=$B$2)*(Hires!$C$1:$M$1=C$38)*(Hires!$C$2:$M$10)) -> 599.76 | D39: =SUMPRODUCT((Hires!$A$2:$A$10=$B39)*(Hires!$B$2:$B$10=$B$2)*(Hires!$C$1:$M$1=D$38)*(Hires!$C$2:$M$10)) -> 264.48 | E39: =SUMPRODUCT((Hires!$A$2:$A$10=$B39)*(Hires!$B$2:$B$10=$B$2)*(Hires!$C$1:$M$1=E$38)*(Hires!$C$2:$M$10)) -> 408 | F39: =SUMPRODUCT((Hires!$A$2:$A$10=$B39)*(Hires!$B$2:$B$10=$B$2)*(Hires!$C$1:$M$1=F$38)*(Hires!$C$2:$M$10)) -> 514 | G39: =SUMPRODUCT((Hires!$A$2:$A$10=$B39)*(Hires!$B$2:$B$10=$B$2)*(Hires!$C$1:$M$1=G$38)*(Hires!$C$2:$M$10)) -> 612 | H39: =SUMPRODUCT((Hires!$A$2:$A$10=$B39)*(Hires!$B$2:$B$10=$B$2)*(Hires!$C$1:$M$1=H$38)*(Hires!$C$2:$M$10)) -> 232 | I39: =SUMPRODUCT((Hires!$A$2:$A$10=$B39)*(Hires!$B$2:$B$10=$B$2)*(Hires!$C$1:$M$1=I$38)*(Hires!$C$2:$M$10)) -> 387 | J39: =SUMPRODUCT((Hires!$A$2:$A$10=$B39)*(Hires!$B$2:$B$10=$B$2)*(Hires!$C$1:$M$1=J$38)*(Hires!$C$2:$M$10)) -> 418
B40: Termination | C40: =SUMPRODUCT((Hires!$A$2:$A$10=$B40)*(Hires!$B$2:$B$10=$B$2)*(Hires!$C$1:$M$1=C$38)*(Hires!$C$2:$M$10)) -> -416.16 | D40: =SUMPRODUCT((Hires!$A$2:$A$10=$B40)*(Hires!$B$2:$B$10=$B$2)*(Hires!$C$1:$M$1=D$38)*(Hires!$C$2:$M$10)) -> -234.78 | E40: =SUMPRODUCT((Hires!$A$2:$A$10=$B40)*(Hires!$B$2:$B$10=$B$2)*(Hires!$C$1:$M$1=E$38)*(Hires!$C$2:$M$10)) -> -612 | F40: =SUMPRODUCT((Hires!$A$2:$A$10=$B40)*(Hires!$B$2:$B$10=$B$2)*(Hires!$C$1:$M$1=F$38)*(Hires!$C$2:$M$10)) -> -511 | G40: =SUMPRODUCT((Hires!$A$2:$A$10=$B40)*(Hires!$B$2:$B$10=$B$2)*(Hires!$C$1:$M$1=G$38)*(Hires!$C$2:$M$10)) -> -408 | H40: =SUMPRODUCT((Hires!$A$2:$A$10=$B40)*(Hires!$B$2:$B$10=$B$2)*(Hires!$C$1:$M$1=H$38)*(Hires!$C$2:$M$10)) -> -301 | I40: =SUMPRODUCT((Hires!$A$2:$A$10=$B40)*(Hires!$B$2:$B$10=$B$2)*(Hires!$C$1:$M$1=I$38)*(Hires!$C$2:$M$10)) -> -354 | J40: =SUMPRODUCT((Hires!$A$2:$A$10=$B40)*(Hires!$B$2:$B$10=$B$2)*(Hires!$C$1:$M$1=J$38)*(Hires!$C$2:$M$10)) -> -102
B42: Check | C42: =SUM(C39:C41)-SUM(Calcs!B46:B47) -> 0 | D42: =SUM(D39:D41)-SUM(Calcs!C46:C47) -> 0 | E42: =SUM(E39:E41)-SUM(Calcs!D46:D47) -> 0 | F42: =SUM(F39:F41)-SUM(Calcs!E46:E47) -> 0 | G42: =SUM(G39:G41)-SUM(Calcs!F46:F47) -> 0 | H42: =SUM(H39:H41)-SUM(Calcs!G46:G47) -> 0 | I42: =SUM(I39:I41)-SUM(Calcs!H46:H47) -> 0 | J42: =SUM(J39:J41)-SUM(Calcs!I46:I47) -> 0 | M42: =SUM(C42:L42) -> 0
B44: Check Totals | D44: =IF(M44=0,Lists!H2,Lists!H3) -> Model OK | M44: =SUM(M3:M43) -> 0

Sheet Summary
B5: 1
E10: Financial Measure | J10: =OFFSET(Lists!E1,$B$5,0,1,1) -> FY 12 | K10: =OFFSET(Lists!$E$1,MATCH(J10,Lists!$E$1:$E$12,0),0,1,1) -> FY 13 | L10: =OFFSET(Lists!$E$1,MATCH(K10,Lists!$E$1:$E$12,0),0,1,1) -> FY 14 | M10: =OFFSET(Lists!$E$1,MATCH(L10,Lists!$E$1:$E$12,0),0,1,1) -> FY 15 | N10: =OFFSET(Lists!$E$1,MATCH(M10,Lists!$E$1:$E$12,0),0,1,1) -> FY 16 | O10: =OFFSET(Lists!$E$1,MATCH(N10,Lists!$E$1:$E$12,0),0,1,1) -> FY 17 | R10: Hires and Terminations
E11: Net Income | J11: =Calcs!B27 -> 7400 | K11: =Calcs!C27 -> 8100 | L11: =Calcs!D27 -> 8300 | M11: =Calcs!E27 -> 9600 | N11: =Calcs!F27 -> 10200 | O11: =Calcs!G27 -> 10000
B12: Home Loans | D12: =Calcs!B71 -> 0.12 | E12: Revenue | J12: =Calcs!B28 -> 28900 | K12: =Calcs!C28 -> 33569 | L12: =Calcs!D28 -> 34511 | M12: =Calcs!E28 -> 35678 | N12: =Calcs!F28 -> 38976 | O12: =Calcs!G28 -> 40014
B13: Credit Cards | D13: =Calcs!B72 -> 0.25 | E13: Diluted Earnings Per Share | J13: =Calcs!B29 -> 3.1 | K13: =Calcs!C29 -> 3.2 | L13: =Calcs!D29 -> 3.35 | M13: =Calcs!E29 -> 3.4 | N13: =Calcs!F29 -> 3.45 | O13: =Calcs!G29 -> 3.6
B14: Houshold Lending | D14: =Calcs!B73 -> 0.04 | E14: Dividends Per Share | J14: =Calcs!B30 -> 0.97 | K14: =Calcs!C30 -> 1.05 | L14: =Calcs!D30 -> 1.11 | M14: =Calcs!E30 -> 1.2 | N14: =Calcs!F30 -> 1.23 | O14: =Calcs!G30 -> 1.28
B15: Other Bank Income | D15: =Calcs!B74 -> 0.02 | E15: Return on Assets | J15: =Calcs!B31 -> 2.6 | K15: =Calcs!C31 -> 2.4 | L15: =Calcs!D31 -> 2.6 | M15: =Calcs!E31 -> 2.5 | N15: =Calcs!F31 -> 2.5 | O15: =Calcs!G31 -> 2.6
B16: Retail Deposits | D16: =Calcs!B75 -> 0.06 | E16: Return on Equity | J16: =Calcs!B32 -> 23.4 | K16: =Calcs!C32 -> 22.7 | L16: =Calcs!D32 -> 26.8 | M16: =Calcs!E32 -> 25.7 | N16: =Calcs!F32 -> 27.6 | O16: =Calcs!G32 -> 28.6
B17: Business Lending | D17: =Calcs!B76 -> 0.18 | E17: Net Interest Margin | J17: =Calcs!B33 -> 7.5 | K17: =Calcs!C33 -> 7.8 | L17: =Calcs!D33 -> 8.3 | M17: =Calcs!E33 -> 8.3 | N17: =Calcs!F33 -> 8.4 | O17: =Calcs!G33 -> 8.7
B18: Asset Finance | D18: =Calcs!B77 -> 0.2 | E18: Efficiency Ratio | J18: =Calcs!B34 -> 0.84 | K18: =Calcs!C34 -> 0.9 | L18: =Calcs!D34 -> 0.85 | M18: =Calcs!E34 -> 0.87 | N18: =Calcs!F34 -> 0.84 | O18: =Calcs!G34 -> 0.88
B19: Equities Trading | D19: =Calcs!B78 -> 0.1 | E19: Assets | J19: =Calcs!B35 -> 440000 | K19: =Calcs!C35 -> 465000 | L19: =Calcs!D35 -> 480000 | M19: =Calcs!E35 -> 520000 | N19: =Calcs!F35 -> 550000 | O19: =Calcs!G35 -> 620000
B20: FX Trading | D20: =Calcs!B79 -> 0.03 | E20: Loans | J20: =Calcs!B36 -> 255923 | K20: =Calcs!C36 -> 267900 | L20: =Calcs!D36 -> 278900 | M20: =Calcs!E36 -> 298765 | N20: =Calcs!F36 -> 312900 | O20: =Calcs!G36 -> 320984
E21: Core Deposits | J21: =Calcs!B37 -> 253651 | K21: =Calcs!C37 -> 262890 | L21: =Calcs!D37 -> 268931 | M21: =Calcs!E37 -> 274900 | N21: =Calcs!F37 -> 289150 | O21: =Calcs!G37 -> 305918
E22: Stockholder's Equity | J22: =Calcs!B38 -> 28750 | K22: =Calcs!C38 -> 30800 | L22: =Calcs!D38 -> 31540 | M22: =Calcs!E38 -> 32700 | N22: =Calcs!F38 -> 33870 | O22: =Calcs!G38 -> 34900
E23: Non-Performing Loans / Total Loans | J23: =Calcs!B39 -> 1.7 | K23: =Calcs!C39 -> 1.5 | L23: =Calcs!D39 -> 1.5 | M23: =Calcs!E39 -> 1.4 | N23: =Calcs!F39 -> 1.2 | O23: =Calcs!G39 -> 1.3
E24: Allowance / Total Loans | J24: =Calcs!B40 -> 2.9 | K24: =Calcs!C40 -> 2.9 | L24: =Calcs!D40 -> 3 | M24: =Calcs!E40 -> 3 | N24: =Calcs!F40 -> 3.1 | O24: =Calcs!G40 -> 3.2
E25: Allowance / Non-Performing Loans | J25: =Calcs!B41 -> 3.45 | K25: =Calcs!C41 -> 3.6 | L25: =Calcs!D41 -> 3.55 | M25: =Calcs!E41 -> 3.65 | N25: =Calcs!F41 -> 3.7 | O25: =Calcs!G41 -> 3.9
E26: Net Charge Offs / Average Total Loans | J26: =Calcs!B42 -> 1.7 | K26: =Calcs!C42 -> 1.4 | L26: =Calcs!D42 -> 1.6 | M26: =Calcs!E42 -> 1.6 | N26: =Calcs!F42 -> 1.5 | O26: =Calcs!G42 -> 1.4
E29: Customer Satisfaction | L29: =Calcs!A3&" Trend" -> Net Interest Margin Trend | T29: Absence CY v PY
B34: Interest Income | D34: =Calcs!B51 -> 166.6666667
B35: Funds Mgt Income | D35: =Calcs!B52 -> 333.3333333
B36: Insurance Income | D36: =Calcs!B53 -> 250
B37: Other Bank Income | D37: =Calcs!B54 -> 83.33333333
B38: Net Income | D38: =Calcs!B55 -> 833.3333333
B39: Operational Expenses | D39: =Calcs!B56 -> 416.6666667
B40: Loan Imparement Expenses | D40: =Calcs!B57 -> 104.1666667
B41: Net Expenses | D41: =Calcs!B58 -> 520.8333333
B42: Net Profit | D42: =Calcs!B59 -> 312.5
B45: Model Check | D45: =Check!D44 -> Model OK
